{"text_format":"1","workbook":"xlsx","n_sheets":5,"sheets":["Notes","Areas","Trusts","Categories","BS"],"not_rendered":{"charts":0,"images":0,"macros":1,"external_links":2,"defined_names":8,"comments":0,"pivot_tables":0},"unopened":[],"bounds":{"document_bytes":16777216,"sheet_cells":100000,"rows_first":2000,"rows_last":500,"rows_between":2000,"halvings":0,"cell_chars":16384,"cell_head_chars":4096},"cells_cut":0,"cells_raw":0,"read":"whole","date_system":"1900"}

{"sheet":"Notes","index":0,"n_rows":2,"n_cols":7,"rows_kept":2,"cut":false,"hidden":false,"merged":[[1,1,1,4]]}
[]
[null,"Mental Health Friends and Family Test (FFT) data - March 2015",null,null,null,null," Show data for:"]

{"sheet":"Areas","index":1,"n_rows":39,"n_cols":12,"rows_kept":39,"cut":false,"hidden":false,"merged":[[8,6,8,11],[10,0,10,1],[11,0,11,1],[12,0,12,1],[8,0,9,0],[8,1,9,1],[8,2,9,2],[8,3,9,3],[8,4,9,4],[8,5,9,5]]}
[]
[]
[null,null,"Show data for:              ",null,null,null,null,null,null,"(Collection mode data is shown with Trusts data)          "]
[]
[]
[null,"       Sort data by:           "]
[]
[]
["Area Team Code","Area Team Name","Total Responses","Total Eligible","Percentage Recommended","Percentage Not  Recommended","Breakdown of Responses"]
[null,null,null,null,null,null,"Extremely Likely","Likely","Neither","Unlikely","Extremely Unlikely","Don't Know"]
["England (including Independent Sector Providers)",null,17709,660453,0.8754870404878875,4.3875995256649161E-2,10514,4990,890,387,390,538]
["England (excluding Independent Sector Providers)",null,16505,654402,0.87028173280823995,4.5804301726749472E-2,9568,4796,862,374,382,523]
["Selection (excluding suppressed data)",null,{"$f":"SUBTOTAL(9,C14:C39)","v":17709},{"$f":"SUBTOTAL(9,D14:D39)","v":660453},{"$f":"(G13+H13)/SUM(G13:L13)","v":0.8754870404878875},{"$f":"(J13+K13)/SUM(G13:L13)","v":4.3875995256649161E-2},{"$f":"SUBTOTAL(9,G14:G39)","v":10514},{"$f":"SUBTOTAL(9,H14:H39)","v":4990},890,387,390,538]
["Q44","Cheshire, Warrington And Wirral Area Team",848,21840,0.90683962264150941,2.358490566037736E-2,557,212,36,5,15,23]
["Q45","Durham, Darlington And Tees Area Team",944,56254,0.84745762711864403,5.8262711864406777E-2,419,381,55,38,17,34]
["Q46","Greater Manchester Area Team",749,22005,0.87449933244325773,5.2069425901201602E-2,505,150,37,19,20,18]
["Q47","Lancashire Area Team",295,14606,0.92203389830508475,1.6949152542372881E-2,193,79,12,3,2,6]
["Q48","Merseyside Area Team",330,17280,0.89696969696969697,2.1212121212121213E-2,179,117,21,2,5,6]
["Q49","Cumbria, Northumberland, Tyne And Wear Area Team",685,30331,0.90072992700729926,2.0437956204379562E-2,460,157,29,6,8,25]
["Q50","North Yorkshire And Humber Area Team",171,4487,0.89473684210526316,4.6783625730994149E-2,105,48,5,5,3,5]
["Q51","South Yorkshire And Bassetlaw Area Team",297,30354,0.92255892255892258,2.6936026936026935E-2,206,68,6,3,5,9]
["Q52","West Yorkshire Area Team",929,45186,0.82884822389666313,9.1496232508073191E-2,596,174,40,38,47,34]
["Q53","Arden, Herefordshire And Worcestershire Area Team",79,11539,0.79746835443037978,0.13924050632911392,46,17,4,5,6,1]
["Q54","Birmingham And The Black Country Area Team",1213,32127,0.87551525144270403,3.3800494641384994E-2,625,437,56,27,14,54]
["Q55","Derbyshire And Nottinghamshire Area Team",400,27941,0.91500000000000004,4.2500000000000003E-2,269,97,8,4,13,9]
["Q56","East Anglia Area Team",500,26589,0.85399999999999998,2.8000000000000001E-2,276,151,20,7,7,39]
["Q57","Essex Area Team",342,31487,0.83918128654970758,9.3567251461988299E-2,178,109,18,14,18,5]
["Q58","Hertfordshire And The South Midlands Area Team",654,38255,0.85168195718654438,4.8929663608562692E-2,371,186,40,15,17,25]
["Q59","Leicestershire And Lincolnshire Area Team",1047,14632,0.93123209169054444,1.9102196752626553E-2,747,228,35,10,10,17]
["Q60","Shropshire And Staffordshire Area Team",213,13109,0.85915492957746475,6.1032863849765258E-2,128,55,7,6,7,10]
["Q64","Bath, Gloucestershire, Swindon And Wiltshire Area Team",1015,13387,0.8886699507389163,3.2512315270935961E-2,613,289,52,18,15,28]
["Q65","Bristol, North Somerset, Somerset And South Gloucestershire Area Team",192,192,0.9375,1.5625E-2,130,50,6,1,2,3]
["Q66","Devon, Cornwall And Isles Of Scilly Area Team",262,12447,0.8854961832061069,4.9618320610687022E-2,168,64,10,4,9,7]
["Q67","Kent And Medway Area Team",136,13523,0.83088235294117652,8.0882352941176475E-2,88,25,7,4,7,5]
["Q68","Surrey And Sussex Area Team",452,28292,0.84955752212389379,5.5309734513274339E-2,232,152,40,11,14,3]
["Q69","Thames Valley Area Team",578,14720,0.86159169550173009,4.3252595155709339E-2,315,183,38,10,15,17]
["Q70","Wessex Area Team",1215,33252,0.91028806584362143,2.9629629629629631E-2,804,302,40,22,14,33]
["Q71","London Area Team",2959,100567,0.8188577222034471,6.3872930043933768E-2,1358,1065,240,97,92,107]
["IS1","Independent Sector Provider",1204,6051,0.94684385382059799,1.7441860465116279E-2,946,194,28,13,8,15]

{"sheet":"Trusts","index":2,"n_rows":87,"n_cols":20,"rows_kept":87,"cut":false,"hidden":false,"merged":[[8,6,9,6],[8,7,8,12],[8,13,8,19],[10,0,10,2],[11,0,11,2],[8,4,9,4],[8,5,9,5],[12,0,12,2],[8,0,9,0],[8,1,9,1],[8,2,9,2],[8,3,9,3]]}
[]
[]
[null,null,null,"Show data for:              ",null,null,null,null,null,null,"(Collection mode data is shown with Trusts data)          "]
[]
[]
[null,"       Sort data by:           "]
[]
[]
["Area Team Code","Trust Code","Trust Name","Total Responses","Total Eligible","Percentage Recommended","Percentage Not  Recommended","Breakdown of Responses",null,null,null,null,null,"Mode of Collection"]
[null,null,null,null,null,null,null,"Extremely Likely","Likely","Neither","Unlikely","Extremely Unlikely","Don't Know","SMS/Text / Smartphone App","Electronic tablet/kiosk at point of discharge","Paper / postcard at point of discharge","Paper survey sent to the patients home","Telephone survey once patient is home","Online survey once patient is home","Other"]
["England (including Independent Sector Providers)",null,null,17709,660453,0.8754870404878875,4.3875995256649161E-2,10514,4990,890,387,390,538,181,3782,8247,1899,133,2037,1430]
["England (excluding Independent Sector Providers)",null,null,16505,654402,0.87028173280823995,4.5804301726749472E-2,9568,4796,862,374,382,523,153,3766,8026,1891,133,1997,539]
["Selection (excluding suppressed data)",null,null,{"$f":"SUBTOTAL(9,D14:D300)","v":17709},{"$f":"SUBTOTAL(9,E14:E300)","v":660453},{"$f":"(H13+I13)/SUM(H13:M13)","v":0.87606449415237875},{"$f":"(K13+L13)/SUM(H13:M13)","v":4.3317815374134212E-2},{"$f":"SUBTOTAL(9,H14:H300)","v":10461},4970,883,381,382,537,181,3764,8170,1899,133,2037,1430]
["Q44","RTV","5 BOROUGHS PARTNERSHIP NHS FOUNDATION TRUST",496,10141,0.88911290322580649,3.6290322580645164E-2,335,106,14,3,15,23,20,69,407,0,0,0,0]
["Q44","RXA","CHESHIRE AND WIRRAL PARTNERSHIP NHS FOUNDATION TRUST",352,11699,0.93181818181818177,5.681818181818182E-3,222,106,22,2,0,0,0,0,0,352,0,0,0]
["Q45","RX3","TEES, ESK AND WEAR VALLEYS NHS FOUNDATION TRUST",944,56254,0.84745762711864403,5.8262711864406777E-2,419,381,55,38,17,34,0,424,453,0,0,0,67]
["Q46","RXV","GREATER MANCHESTER WEST MENTAL HEALTH NHS FOUNDATION TRUST",107,14251,0.86915887850467288,8.4112149532710276E-2,68,25,3,3,6,2,43,54,10,0,0,0,0]
["Q46","TAE","MANCHESTER MENTAL HEALTH AND SOCIAL CARE TRUST",311,7423,0.887459807073955,4.1800643086816719E-2,226,50,15,7,6,7,0,0,311,0,0,0,0]
["Q46","RT2","PENNINE CARE NHS FOUNDATION TRUST",331,331,0.86404833836858008,5.1359516616314202E-2,211,75,19,9,8,9,0,0,331,0,0,0,0]
["Q47","RXL","BLACKPOOL TEACHING HOSPITALS NHS FOUNDATION TRUST",58,1971,0.94827586206896552,0,45,10,2,0,0,1,2,0,56,0,0,0,0]
["Q47","RW5","LANCASHIRE CARE NHS FOUNDATION TRUST",237,12635,0.91561181434599159,2.1097046413502109E-2,148,69,10,3,2,5,0,0,237,0,0,0,0]
["Q48","RBS","ALDER HEY CHILDREN'S NHS FOUNDATION TRUST",23,23,0.95652173913043481,0,15,7,1,0,0,0,0,0,23,0,0,0,0]
["Q48","RW4","MERSEY CARE NHS TRUST",307,17257,0.89250814332247552,2.2801302931596091E-2,164,110,20,2,5,6,0,307,0,0,0,0,0]
["Q49","RNN","CUMBRIA PARTNERSHIP NHS FOUNDATION TRUST",181,4399,0.94475138121546964,2.7624309392265192E-2,121,50,4,3,2,1,0,25,156,0,0,0,0]
["Q49","RR7","GATESHEAD HEALTH NHS FOUNDATION TRUST",60,335,0.98333333333333328,0,59,0,0,0,0,1,0,0,60,0,0,0,0]
["Q49","RX4","NORTHUMBERLAND, TYNE AND WEAR NHS FOUNDATION TRUST",190,24955,0.78421052631578947,3.6842105263157891E-2,79,70,15,1,6,19,0,0,0,190,0,0,0]
["Q49","RTF","NORTHUMBRIA HEALTHCARE NHS FOUNDATION TRUST",57,310,0.85964912280701755,3.5087719298245612E-2,29,20,5,2,0,1,0,0,57,0,0,0,0]
["Q49","RE9","SOUTH TYNESIDE NHS FOUNDATION TRUST",197,332,0.95939086294416243,0,172,17,5,0,0,3,0,0,197,0,0,0,0]
["Q50","RV9","HUMBER NHS FOUNDATION TRUST",171,4487,0.89473684210526316,4.6783625730994149E-2,105,48,5,5,3,5,0,5,165,0,0,1,0]
["Q51","RXE","ROTHERHAM DONCASTER AND SOUTH HUMBER NHS FOUNDATION TRUST",118,18112,0.97457627118644063,1.6949152542372881E-2,95,20,0,0,2,1,0,0,118,0,0,0,0]
["Q51","TAH","SHEFFIELD HEALTH & SOCIAL CARE NHS FOUNDATION TRUST",179,12242,0.88826815642458101,3.3519553072625698E-2,111,48,6,3,3,8,0,0,179,0,0,0,0]
["Q52","TAD","BRADFORD DISTRICT CARE TRUST",74,8538,0.81081081081081086,0.12162162162162163,39,21,3,7,2,2,0,59,10,0,0,5,0]
["Q52","RGD","LEEDS AND YORK PARTNERSHIP NHS FOUNDATION TRUST",74,12510,0.8783783783783784,0.12162162162162163,44,21,0,4,5,0,0,0,0,74,0,0,0]
["Q52","RY6","LEEDS COMMUNITY HEALTHCARE NHS TRUST",392,8750,0.85459183673469385,7.3979591836734693E-2,284,51,20,12,17,8,0,0,392,0,0,0,0]
["Q52","RXG","SOUTH WEST YORKSHIRE PARTNERSHIP NHS FOUNDATION TRUST",389,15388,0.79691516709511567,9.7686375321336755E-2,229,81,17,15,23,24,0,236,153,0,0,0,0]
["Q53","RYG","COVENTRY AND WARWICKSHIRE PARTNERSHIP NHS TRUST",78,8247,0.79487179487179482,0.14102564102564102,"*","*","*","*","*","*","*","*","*","*","*","*","*"]
["Q53","R1A","WORCESTERSHIRE HEALTH AND CARE NHS TRUST",1,3292,"*","*","*","*","*","*","*","*","*","*","*","*","*","*","*"]
["Q54","RXT","BIRMINGHAM AND SOLIHULL MENTAL HEALTH NHS FOUNDATION TRUST",951,18572,0.88433228180862256,4.2060988433228183E-2,506,335,43,27,13,27,0,730,221,0,0,0,0]
["Q54","RQ3","BIRMINGHAM CHILDREN'S HOSPITAL NHS FOUNDATION TRUST",6,5,0.66666666666666663,0,3,1,0,0,0,2,0,0,5,1,0,0,0]
["Q54","TAJ","BLACK COUNTRY PARTNERSHIP NHS FOUNDATION TRUST",78,7546,0.92307692307692313,1.282051282051282E-2,50,22,1,0,1,4,0,0,0,78,0,0,0]
["Q54","RYK","DUDLEY AND WALSALL MENTAL HEALTH PARTNERSHIP NHS TRUST",178,6004,0.8146067415730337,0,66,79,12,0,0,21,0,0,0,0,0,0,178]
["Q55","RXM","DERBYSHIRE HEALTHCARE NHS FOUNDATION TRUST",48,9979,0.75,0.125,29,7,0,2,4,6,0,0,0,0,0,48,0]
["Q55","RHA","NOTTINGHAMSHIRE HEALTHCARE NHS FOUNDATION TRUST",352,17962,0.9375,3.125E-2,240,90,8,2,9,3,0,5,347,0,0,0,0]
["Q56","RT1","CAMBRIDGESHIRE AND PETERBOROUGH NHS FOUNDATION TRUST",454,10143,0.85462555066079293,2.2026431718061675E-2,248,140,18,5,5,38,0,356,93,0,0,5,0]
["Q56","RMY","NORFOLK AND SUFFOLK NHS FOUNDATION TRUST",46,16446,0.84782608695652173,8.6956521739130432E-2,28,11,2,2,2,1,0,0,46,0,0,0,0]
["Q57","RRD","NORTH ESSEX PARTNERSHIP UNIVERSITY NHS FOUNDATION TRUST",96,15612,0.71875,0.14583333333333334,32,37,8,4,10,5,0,0,0,0,0,96,0]
["Q57","RWN","SOUTH ESSEX PARTNERSHIP UNIVERSITY NHS FOUNDATION TRUST",246,15875,0.88617886178861793,7.3170731707317069E-2,146,72,10,10,8,0,0,0,0,246,0,0,0]
["Q58","RY4","HERTFORDSHIRE COMMUNITY NHS TRUST",11,181,1,0,9,2,0,0,0,0,0,0,0,11,0,0,0]
["Q58","RWR","HERTFORDSHIRE PARTNERSHIP UNIVERSITY NHS FOUNDATION TRUST",311,33182,0.79099678456591638,8.3601286173633438E-2,150,96,23,12,14,16,0,0,301,0,0,10,0]
["Q58","RP1","NORTHAMPTONSHIRE HEALTHCARE NHS FOUNDATION TRUST",332,4892,0.90361445783132532,1.8072289156626505E-2,212,88,17,3,3,9,0,23,305,0,0,4,0]
["Q59","RT5","LEICESTERSHIRE PARTNERSHIP NHS TRUST",290,10446,0.89310344827586208,4.8275862068965517E-2,190,69,9,6,8,8,0,0,270,0,0,2,18]
["Q59","RP7","LINCOLNSHIRE PARTNERSHIP NHS FOUNDATION TRUST",757,4186,0.94583883751651254,7.9260237780713338E-3,557,159,26,4,2,9,0,49,471,108,0,129,0]
["Q60","RLY","NORTH STAFFORDSHIRE COMBINED HEALTHCARE NHS TRUST",58,538,0.89655172413793105,5.1724137931034482E-2,39,13,2,2,1,1,0,0,58,0,0,0,0]
["Q60","R1D","SHROPSHIRE COMMUNITY HEALTH NHS TRUST",20,969,0.85,0.1,15,2,0,0,2,1,0,0,20,0,0,0,0]
["Q60","RRE","SOUTH STAFFORDSHIRE AND SHROPSHIRE HEALTHCARE NHS FOUNDATION TRUST",135,11602,0.84444444444444444,5.9259259259259262E-2,74,40,5,4,4,8,0,0,106,22,6,1,0]
["Q64","RTQ","2GETHER NHS FOUNDATION TRUST",295,8235,0.8677966101694915,5.0847457627118647E-2,166,90,15,10,5,9,61,104,129,0,0,1,0]
["Q64","RVN","AVON AND WILTSHIRE MENTAL HEALTH PARTNERSHIP NHS TRUST",720,5152,0.89722222222222225,2.5000000000000001E-2,447,199,37,8,10,19,0,104,43,358,0,215,0]
["Q65","RH5","SOMERSET PARTNERSHIP NHS FOUNDATION TRUST",192,192,0.9375,1.5625E-2,130,50,6,1,2,3,0,0,192,0,0,0,0]
["Q66","RJ8","CORNWALL PARTNERSHIP NHS FOUNDATION TRUST",204,5270,0.87745098039215685,4.9019607843137254E-2,129,50,9,2,8,6,0,48,95,27,0,34,0]
["Q66","RWV","DEVON PARTNERSHIP NHS TRUST",58,7177,0.91379310344827591,5.1724137931034482E-2,39,14,1,2,1,1,0,1,56,0,0,1,0]
["Q67","RXY","KENT AND MEDWAY NHS AND SOCIAL CARE PARTNERSHIP TRUST",136,13523,0.83088235294117652,8.0882352941176475E-2,88,25,7,4,7,5,0,0,136,0,0,0,0]
["Q68","RXX","SURREY AND BORDERS PARTNERSHIP NHS FOUNDATION TRUST",223,9441,0.8340807174887892,7.623318385650224E-2,102,84,19,6,11,1,0,199,0,0,0,24,0]
["Q68","RX2","SUSSEX PARTNERSHIP NHS FOUNDATION TRUST",229,18851,0.86462882096069871,3.4934497816593885E-2,130,68,21,5,3,2,18,179,0,0,0,32,0]
["Q69","RWX","BERKSHIRE HEALTHCARE NHS FOUNDATION TRUST",80,4198,0.875,7.4999999999999997E-2,51,19,1,1,5,3,9,10,14,47,0,0,0]
["Q69","RNU","OXFORD HEALTH NHS FOUNDATION TRUST",498,10522,0.85943775100401609,3.8152610441767071E-2,264,164,37,9,10,14,0,39,50,306,0,103,0]
["Q70","RDY","DORSET HEALTHCARE UNIVERSITY NHS FOUNDATION TRUST",506,9782,0.94071146245059289,1.5810276679841896E-2,395,81,14,6,2,8,0,12,27,0,0,191,276]
["Q70","R1F","ISLE OF WIGHT NHS TRUST",22,3483,0.95454545454545459,0,14,7,0,0,0,1,0,0,22,0,0,0,0]
["Q70","R1C","SOLENT NHS TRUST",177,7011,0.94350282485875703,2.2598870056497175E-2,113,54,4,1,3,2,0,4,173,0,0,0,0]
["Q70","RW1","SOUTHERN HEALTH NHS FOUNDATION TRUST",510,12976,0.8666666666666667,4.7058823529411764E-2,282,160,22,15,9,22,0,0,329,0,0,181,0]
["Q71","RRP","BARNET, ENFIELD AND HARINGEY MENTAL HEALTH NHS TRUST",914,8724,0.83041575492341357,4.0481400437636761E-2,387,372,89,20,17,29,0,28,0,0,0,886,0]
["Q71","TAF","CAMDEN AND ISLINGTON NHS FOUNDATION TRUST",42,2539,0.73809523809523814,0.23809523809523808,18,13,1,4,6,0,0,42,0,0,0,0,0]
["Q71","RV3","CENTRAL AND NORTH WEST LONDON NHS FOUNDATION TRUST",86,15529,0.80232558139534882,6.9767441860465115E-2,37,32,8,1,5,3,0,0,86,0,0,0,0]
["Q71","RWK","EAST LONDON NHS FOUNDATION TRUST",98,284,0.69387755102040816,0.16326530612244897,25,43,9,11,5,5,0,98,0,0,0,0,0]
["Q71","RAT","NORTH EAST LONDON NHS FOUNDATION TRUST",206,15840,0.79611650485436891,4.8543689320388349E-2,89,75,25,3,7,7,0,4,0,71,127,4,0]
["Q71","RPG","OXLEAS NHS FOUNDATION TRUST",306,8324,0.79738562091503273,6.2091503267973858E-2,147,97,26,8,11,17,0,127,179,0,0,0,0]
["Q71","RV5","SOUTH LONDON AND MAUDSLEY NHS FOUNDATION TRUST",904,31913,0.84292035398230092,5.4203539823008851E-2,433,329,63,30,19,30,0,407,473,0,0,24,0]
["Q71","RQY","SOUTH WEST LONDON AND ST GEORGE'S MENTAL HEALTH NHS TRUST",14,8093,0.5714285714285714,0.21428571428571427,"*","*","*","*","*","*","*","*","*","*","*","*","*"]
["Q71","RNK","TAVISTOCK AND PORTMAN NHS FOUNDATION TRUST",110,1685,0.9363636363636364,6.363636363636363E-2,93,10,0,4,3,0,0,0,110,0,0,0,0]
["Q71","RRV","UNIVERSITY COLLEGE LONDON HOSPITALS NHS FOUNDATION TRUST",2,12,"*","*","*","*","*","*","*","*","*","*","*","*","*","*","*"]
["Q71","RKL","WEST LONDON MENTAL HEALTH NHS TRUST",277,7624,0.76895306859205781,0.11552346570397112,122,91,16,15,17,16,0,0,277,0,0,0,0]
["IS1","NVR","ALPHA HOSPITALS",28,233,0.5714285714285714,0.21428571428571427,7,9,5,3,3,1,0,0,28,0,0,0,0]
["IS1","NWX","BRIGHTON & HOVE INTEGRATED CARE SERVICE",61,1338,0.88524590163934425,3.2786885245901641E-2,42,12,5,1,1,0,0,0,30,0,0,31,0]
["IS1","NNF","CITY HEALTH CARE PARTNERSHIP CIC",152,1853,0.97368421052631582,6.5789473684210523E-3,123,25,3,1,0,0,0,1,149,0,0,2,0]
["IS1","NMJ","CYGNET HEALTH CARE LIMITED",28,28,0.75,0.14285714285714285,9,12,1,3,1,2,28,0,0,0,0,0,0]
["IS1","NQL","NAVIGO",888,2522,0.97072072072072069,3.3783783783783786E-3,742,120,12,2,1,11,0,0,0,0,0,0,888]
["IS1","NR5","PLYMOUTH COMMUNITY HEALTHCARE (CIC)",39,69,0.79487179487179482,0.12820512820512819,21,10,2,3,2,1,0,15,14,0,0,7,3]
["IS1","NDK","YARBOROUGH CLEE CARE LIMITED",8,8,1,0,2,6,0,0,0,0,0,0,0,8,0,0,0]

{"sheet":"Categories","index":3,"n_rows":294,"n_cols":13,"rows_kept":294,"cut":false,"hidden":false,"merged":[[8,6,9,6],[8,7,8,12],[10,0,10,3],[11,0,11,3],[12,0,12,3],[8,0,9,0],[8,1,9,1],[8,2,9,2],[8,3,9,3],[8,4,9,4],[8,5,9,5]]}
[]
[]
[null,null,null,"Show data for:                                        ",null,null,null,null,null,"(Collection mode data is shown with Trusts data)          "]
[]
[]
[null,"       Sort data by:           "]
[]
[]
["Area Team Code","Trust Code","Trust Name","Service Category Provided","Total Responses","Percentage Recommended","Percentage Not  Recommended","Breakdown of Responses"]
[null,null,null,null,null,null,null,"Extremely Likely","Likely","Neither","Unlikely","Extremely Unlikely","Don't Know"]
["England (including Independent Sector Providers)",null,null,null,17709,0.8754870404878875,4.3875995256649161E-2,10514,4990,890,387,390,538]
["England (excluding Independent Sector Providers)",null,null,null,16505,0.87028173280823995,4.5804301726749472E-2,9568,4796,862,374,382,523]
["Selection (excluding suppressed data)",null,null,null,{"$f":"SUBTOTAL(9,E14:E1000)","v":17709},{"$f":"(H13+I13)/SUM(H13:M13)","v":0.87654105605954868},{"$f":"(K13+L13)/SUM(H13:M13)","v":4.3149569667364503E-2},{"$f":"SUBTOTAL(9,H14:H1000)","v":10205},{"$f":"SUBTOTAL(9,I14:I1000)","v":4868},858,369,373,523]
["Q44","RTV","5 BOROUGHS PARTNERSHIP NHS FOUNDATION TRUST","Acute Services",76,0.88157894736842102,3.9473684210526314E-2,41,26,4,1,2,2]
["Q44","RTV","5 BOROUGHS PARTNERSHIP NHS FOUNDATION TRUST","Child & Adolescent Mental Health Services",69,0.6376811594202898,0.14492753623188406,22,22,3,0,10,12]
["Q44","RTV","5 BOROUGHS PARTNERSHIP NHS FOUNDATION TRUST","Primary Care",7,1,0,7,0,0,0,0,0]
["Q44","RTV","5 BOROUGHS PARTNERSHIP NHS FOUNDATION TRUST","Secondary Care Community Services",326,0.93558282208588961,1.5337423312883436E-2,249,56,7,2,3,9]
["Q44","RTV","5 BOROUGHS PARTNERSHIP NHS FOUNDATION TRUST","Secure & Forensic Services",8,1,0,7,1,0,0,0,0]
["Q44","RTV","5 BOROUGHS PARTNERSHIP NHS FOUNDATION TRUST","Specialist Services",10,1,0,9,1,0,0,0,0]
["Q44","RXA","CHESHIRE AND WIRRAL PARTNERSHIP NHS FOUNDATION TRUST","Acute Services",352,0.93181818181818177,5.681818181818182E-3,222,106,22,2,0,0]
["Q45","RX3","TEES, ESK AND WEAR VALLEYS NHS FOUNDATION TRUST","Acute Services",295,0.88135593220338981,3.7288135593220341E-2,157,103,15,7,4,9]
["Q45","RX3","TEES, ESK AND WEAR VALLEYS NHS FOUNDATION TRUST","Child & Adolescent Mental Health Services",83,0.61445783132530118,0.2289156626506024,29,22,8,14,5,5]
["Q45","RX3","TEES, ESK AND WEAR VALLEYS NHS FOUNDATION TRUST","Mental Health Other",42,0.9285714285714286,2.3809523809523808E-2,20,19,0,0,1,2]
["Q45","RX3","TEES, ESK AND WEAR VALLEYS NHS FOUNDATION TRUST","Primary Care",22,0.90909090909090906,0,17,3,2,0,0,0]
["Q45","RX3","TEES, ESK AND WEAR VALLEYS NHS FOUNDATION TRUST","Secondary Care Community Services",345,0.94492753623188408,2.8985507246376812E-3,157,169,13,1,0,5]
["Q45","RX3","TEES, ESK AND WEAR VALLEYS NHS FOUNDATION TRUST","Secure & Forensic Services",147,0.66666666666666663,0.14965986394557823,37,61,15,15,7,12]
["Q45","RX3","TEES, ESK AND WEAR VALLEYS NHS FOUNDATION TRUST","Specialist Services",10,0.6,0.1,2,4,2,1,0,1]
["Q46","RXV","GREATER MANCHESTER WEST MENTAL HEALTH NHS FOUNDATION TRUST","Acute Services",37,0.97297297297297303,2.7027027027027029E-2,29,7,0,1,0,0]
["Q46","RXV","GREATER MANCHESTER WEST MENTAL HEALTH NHS FOUNDATION TRUST","Primary Care",25,0.96,0.04,16,8,0,0,1,0]
["Q46","RXV","GREATER MANCHESTER WEST MENTAL HEALTH NHS FOUNDATION TRUST","Secondary Care Community Services",32,0.84375,0.125,19,8,1,0,4,0]
["Q46","RXV","GREATER MANCHESTER WEST MENTAL HEALTH NHS FOUNDATION TRUST","Secure & Forensic Services",11,0.36363636363636365,0.27272727272727271,"*","*","*","*","*","*"]
["Q46","RXV","GREATER MANCHESTER WEST MENTAL HEALTH NHS FOUNDATION TRUST","Specialist Services",2,"*","*","*","*","*","*","*","*"]
["Q46","TAE","MANCHESTER MENTAL HEALTH AND SOCIAL CARE TRUST","Acute Services",105,0.79047619047619044,7.6190476190476197E-2,66,17,9,5,3,5]
["Q46","TAE","MANCHESTER MENTAL HEALTH AND SOCIAL CARE TRUST","Mental Health Other",15,0.8666666666666667,6.6666666666666666E-2,11,2,1,0,1,0]
["Q46","TAE","MANCHESTER MENTAL HEALTH AND SOCIAL CARE TRUST","Primary Care",10,0.9,0.1,4,5,0,0,1,0]
["Q46","TAE","MANCHESTER MENTAL HEALTH AND SOCIAL CARE TRUST","Secondary Care Community Services",87,0.93103448275862066,3.4482758620689655E-2,69,12,2,2,1,1]
["Q46","TAE","MANCHESTER MENTAL HEALTH AND SOCIAL CARE TRUST","Specialist Services",94,0.95744680851063835,0,76,14,3,0,0,1]
["Q46","RT2","PENNINE CARE NHS FOUNDATION TRUST","Acute Services",54,0.85185185185185186,7.407407407407407E-2,32,14,3,2,2,1]
["Q46","RT2","PENNINE CARE NHS FOUNDATION TRUST","Child & Adolescent Mental Health Services",52,0.84615384615384615,9.6153846153846159E-2,32,12,3,3,2,0]
["Q46","RT2","PENNINE CARE NHS FOUNDATION TRUST","Mental Health Other",34,0.97058823529411764,2.9411764705882353E-2,"*","*","*","*","*","*"]
["Q46","RT2","PENNINE CARE NHS FOUNDATION TRUST","Secondary Care Community Services",187,0.85561497326203206,3.7433155080213901E-2,118,42,12,3,4,8]
["Q46","RT2","PENNINE CARE NHS FOUNDATION TRUST","Specialist Services",4,"*","*","*","*","*","*","*","*"]
["Q47","RXL","BLACKPOOL TEACHING HOSPITALS NHS FOUNDATION TRUST","Child & Adolescent Mental Health Services",58,0.94827586206896552,0,45,10,2,0,0,1]
["Q47","RW5","LANCASHIRE CARE NHS FOUNDATION TRUST","Acute Services",21,0.90476190476190477,0,"*","*","*","*","*","*"]
["Q47","RW5","LANCASHIRE CARE NHS FOUNDATION TRUST","Child & Adolescent Mental Health Services",69,0.92753623188405798,0,47,17,4,0,0,1]
["Q47","RW5","LANCASHIRE CARE NHS FOUNDATION TRUST","Mental Health Other",3,"*","*","*","*","*","*","*","*"]
["Q47","RW5","LANCASHIRE CARE NHS FOUNDATION TRUST","Secondary Care Community Services",144,0.90972222222222221,3.4722222222222224E-2,88,43,5,3,2,3]
["Q48","RBS","ALDER HEY CHILDREN'S NHS FOUNDATION TRUST","Child & Adolescent Mental Health Services",23,0.95652173913043481,0,15,7,1,0,0,0]
["Q48","RW4","MERSEY CARE NHS TRUST","Acute Services",112,0.9464285714285714,1.7857142857142856E-2,64,42,3,0,2,1]
["Q48","RW4","MERSEY CARE NHS TRUST","Secondary Care Community Services",149,0.91946308724832215,1.3422818791946308E-2,87,50,5,1,1,5]
["Q48","RW4","MERSEY CARE NHS TRUST","Secure & Forensic Services",46,0.67391304347826086,6.5217391304347824E-2,13,18,12,1,2,0]
["Q49","RNN","CUMBRIA PARTNERSHIP NHS FOUNDATION TRUST","Acute Services",54,0.90740740740740744,3.7037037037037035E-2,36,13,2,2,0,1]
["Q49","RNN","CUMBRIA PARTNERSHIP NHS FOUNDATION TRUST","Child & Adolescent Mental Health Services",8,1,0,7,1,0,0,0,0]
["Q49","RNN","CUMBRIA PARTNERSHIP NHS FOUNDATION TRUST","Primary Care",114,0.95614035087719296,2.6315789473684209E-2,76,33,2,1,2,0]
["Q49","RNN","CUMBRIA PARTNERSHIP NHS FOUNDATION TRUST","Secondary Care Community Services",5,1,0,2,3,0,0,0,0]
["Q49","RR7","GATESHEAD HEALTH NHS FOUNDATION TRUST","Acute Services",3,"*","*","*","*","*","*","*","*"]
["Q49","RR7","GATESHEAD HEALTH NHS FOUNDATION TRUST","Secondary Care Community Services",43,0.97674418604651159,0,42,0,0,0,0,1]
["Q49","RR7","GATESHEAD HEALTH NHS FOUNDATION TRUST","Specialist Services",14,1,0,"*","*","*","*","*","*"]
["Q49","RX4","NORTHUMBERLAND, TYNE AND WEAR NHS FOUNDATION TRUST","Acute Services",17,0.23529411764705882,0,2,2,13,0,0,0]
["Q49","RX4","NORTHUMBERLAND, TYNE AND WEAR NHS FOUNDATION TRUST","Child & Adolescent Mental Health Services",3,"*","*","*","*","*","*","*","*"]
["Q49","RX4","NORTHUMBERLAND, TYNE AND WEAR NHS FOUNDATION TRUST","Mental Health Other",4,"*","*","*","*","*","*","*","*"]
["Q49","RX4","NORTHUMBERLAND, TYNE AND WEAR NHS FOUNDATION TRUST","Secondary Care Community Services",144,0.84722222222222221,2.7777777777777776E-2,60,62,0,1,3,18]
["Q49","RX4","NORTHUMBERLAND, TYNE AND WEAR NHS FOUNDATION TRUST","Secure & Forensic Services",1,"*","*","*","*","*","*","*","*"]
["Q49","RX4","NORTHUMBERLAND, TYNE AND WEAR NHS FOUNDATION TRUST","Specialist Services",21,0.80952380952380953,9.5238095238095233E-2,12,5,1,0,2,1]
["Q49","RTF","NORTHUMBRIA HEALTHCARE NHS FOUNDATION TRUST","Child & Adolescent Mental Health Services",47,0.85106382978723405,4.2553191489361701E-2,24,16,5,2,0,0]
["Q49","RTF","NORTHUMBRIA HEALTHCARE NHS FOUNDATION TRUST","Secondary Care Community Services",10,0.9,0,5,4,0,0,0,1]
["Q49","RE9","SOUTH TYNESIDE NHS FOUNDATION TRUST","Child & Adolescent Mental Health Services",197,0.95939086294416243,0,172,17,5,0,0,3]
["Q50","RV9","HUMBER NHS FOUNDATION TRUST","Acute Services",29,0.68965517241379315,0.13793103448275862,9,11,2,2,2,3]
["Q50","RV9","HUMBER NHS FOUNDATION TRUST","Child & Adolescent Mental Health Services",2,"*","*","*","*","*","*","*","*"]
["Q50","RV9","HUMBER NHS FOUNDATION TRUST","Mental Health Other",18,1,0,10,8,0,0,0,0]
["Q50","RV9","HUMBER NHS FOUNDATION TRUST","Primary Care",14,1,0,14,0,0,0,0,0]
["Q50","RV9","HUMBER NHS FOUNDATION TRUST","Secondary Care Community Services",82,0.95121951219512191,2.4390243902439025E-2,60,18,1,2,0,1]
["Q50","RV9","HUMBER NHS FOUNDATION TRUST","Secure & Forensic Services",12,0.66666666666666663,0.16666666666666666,"*","*","*","*","*","*"]
["Q50","RV9","HUMBER NHS FOUNDATION TRUST","Specialist Services",14,1,0,9,5,0,0,0,0]
["Q51","RXE","ROTHERHAM DONCASTER AND SOUTH HUMBER NHS FOUNDATION TRUST","Acute Services",5,0.8,0.2,4,0,0,0,1,0]
["Q51","RXE","ROTHERHAM DONCASTER AND SOUTH HUMBER NHS FOUNDATION TRUST","Primary Care",36,1,0,27,9,0,0,0,0]
["Q51","RXE","ROTHERHAM DONCASTER AND SOUTH HUMBER NHS FOUNDATION TRUST","Secondary Care Community Services",64,0.96875,1.5625E-2,52,10,0,0,1,1]
["Q51","RXE","ROTHERHAM DONCASTER AND SOUTH HUMBER NHS FOUNDATION TRUST","Specialist Services",13,1,0,12,1,0,0,0,0]
["Q51","TAH","SHEFFIELD HEALTH & SOCIAL CARE NHS FOUNDATION TRUST","Acute Services",8,0.625,0.125,3,2,2,0,1,0]
["Q51","TAH","SHEFFIELD HEALTH & SOCIAL CARE NHS FOUNDATION TRUST","Mental Health Other",9,1,0,9,0,0,0,0,0]
["Q51","TAH","SHEFFIELD HEALTH & SOCIAL CARE NHS FOUNDATION TRUST","Primary Care",34,0.94117647058823528,2.9411764705882353E-2,24,8,1,1,0,0]
["Q51","TAH","SHEFFIELD HEALTH & SOCIAL CARE NHS FOUNDATION TRUST","Secondary Care Community Services",108,0.87962962962962965,3.7037037037037035E-2,60,35,2,2,2,7]
["Q51","TAH","SHEFFIELD HEALTH & SOCIAL CARE NHS FOUNDATION TRUST","Specialist Services",20,0.9,0,15,3,1,0,0,1]
["Q52","TAD","BRADFORD DISTRICT CARE TRUST","Acute Services",50,0.78,0.18,26,13,1,7,2,1]
["Q52","TAD","BRADFORD DISTRICT CARE TRUST","Child & Adolescent Mental Health Services",11,0.81818181818181823,0,6,3,2,0,0,0]
["Q52","TAD","BRADFORD DISTRICT CARE TRUST","Mental Health Other",3,"*","*","*","*","*","*","*","*"]
["Q52","TAD","BRADFORD DISTRICT CARE TRUST","Primary Care",1,"*","*","*","*","*","*","*","*"]
["Q52","TAD","BRADFORD DISTRICT CARE TRUST","Secondary Care Community Services",9,0.88888888888888884,0,4,4,0,0,0,1]
["Q52","RGD","LEEDS AND YORK PARTNERSHIP NHS FOUNDATION TRUST","Acute Services",20,0.75,0.25,7,8,0,3,2,0]
["Q52","RGD","LEEDS AND YORK PARTNERSHIP NHS FOUNDATION TRUST","Child & Adolescent Mental Health Services",6,1,0,2,4,0,0,0,0]
["Q52","RGD","LEEDS AND YORK PARTNERSHIP NHS FOUNDATION TRUST","Mental Health Other",7,0.8571428571428571,0.14285714285714285,4,2,0,1,0,0]
["Q52","RGD","LEEDS AND YORK PARTNERSHIP NHS FOUNDATION TRUST","Secondary Care Community Services",17,0.94117647058823528,5.8823529411764705E-2,13,3,0,0,1,0]
["Q52","RGD","LEEDS AND YORK PARTNERSHIP NHS FOUNDATION TRUST","Specialist Services",24,0.91666666666666663,8.3333333333333329E-2,18,4,0,0,2,0]
["Q52","RY6","LEEDS COMMUNITY HEALTHCARE NHS TRUST","Primary Care",392,0.85459183673469385,7.3979591836734693E-2,284,51,20,12,17,8]
["Q52","RXG","SOUTH WEST YORKSHIRE PARTNERSHIP NHS FOUNDATION TRUST","Acute Services",73,0.86301369863013699,4.1095890410958902E-2,40,23,2,1,2,5]
["Q52","RXG","SOUTH WEST YORKSHIRE PARTNERSHIP NHS FOUNDATION TRUST","Child & Adolescent Mental Health Services",144,0.71527777777777779,0.15277777777777779,76,27,4,10,12,15]
["Q52","RXG","SOUTH WEST YORKSHIRE PARTNERSHIP NHS FOUNDATION TRUST","Mental Health Other",2,"*","*","*","*","*","*","*","*"]
["Q52","RXG","SOUTH WEST YORKSHIRE PARTNERSHIP NHS FOUNDATION TRUST","Primary Care",7,1,0,"*","*","*","*","*","*"]
["Q52","RXG","SOUTH WEST YORKSHIRE PARTNERSHIP NHS FOUNDATION TRUST","Secondary Care Community Services",86,0.98837209302325579,1.1627906976744186E-2,72,13,0,0,1,0]
["Q52","RXG","SOUTH WEST YORKSHIRE PARTNERSHIP NHS FOUNDATION TRUST","Secure & Forensic Services",57,0.56140350877192979,0.17543859649122806,16,16,11,4,6,4]
["Q52","RXG","SOUTH WEST YORKSHIRE PARTNERSHIP NHS FOUNDATION TRUST","Specialist Services",20,0.9,0.1,17,1,0,0,2,0]
["Q53","RYG","COVENTRY AND WARWICKSHIRE PARTNERSHIP NHS TRUST","Acute Services",8,0.75,0.125,4,2,1,0,1,0]
["Q53","RYG","COVENTRY AND WARWICKSHIRE PARTNERSHIP NHS TRUST","Child & Adolescent Mental Health Services",5,0.8,0.2,3,1,0,1,0,0]
["Q53","RYG","COVENTRY AND WARWICKSHIRE PARTNERSHIP NHS TRUST","Mental Health Other",2,"*","*","*","*","*","*","*","*"]
["Q53","RYG","COVENTRY AND WARWICKSHIRE PARTNERSHIP NHS TRUST","Primary Care",5,1,0,4,1,0,0,0,0]
["Q53","RYG","COVENTRY AND WARWICKSHIRE PARTNERSHIP NHS TRUST","Secondary Care Community Services",57,0.78947368421052633,0.15789473684210525,32,13,2,4,5,1]
["Q53","RYG","COVENTRY AND WARWICKSHIRE PARTNERSHIP NHS TRUST","Specialist Services",1,"*","*","*","*","*","*","*","*"]
["Q53","R1A","WORCESTERSHIRE HEALTH AND CARE NHS TRUST","Child & Adolescent Mental Health Services",1,"*","*","*","*","*","*","*","*"]
["Q54","RXT","BIRMINGHAM AND SOLIHULL MENTAL HEALTH NHS FOUNDATION TRUST","Acute Services",124,0.74193548387096775,0.12903225806451613,45,47,11,11,5,5]
["Q54","RXT","BIRMINGHAM AND SOLIHULL MENTAL HEALTH NHS FOUNDATION TRUST","Mental Health Other",2,"*","*","*","*","*","*","*","*"]
["Q54","RXT","BIRMINGHAM AND SOLIHULL MENTAL HEALTH NHS FOUNDATION TRUST","Primary Care",209,0.96650717703349287,4.7846889952153108E-3,126,76,3,1,0,3]
["Q54","RXT","BIRMINGHAM AND SOLIHULL MENTAL HEALTH NHS FOUNDATION TRUST","Secondary Care Community Services",567,0.88183421516754845,3.8800705467372132E-2,310,190,26,14,8,19]
["Q54","RXT","BIRMINGHAM AND SOLIHULL MENTAL HEALTH NHS FOUNDATION TRUST","Secure & Forensic Services",19,0.94736842105263153,0,"*","*","*","*","*","*"]
["Q54","RXT","BIRMINGHAM AND SOLIHULL MENTAL HEALTH NHS FOUNDATION TRUST","Specialist Services",30,0.9,3.3333333333333333E-2,19,8,2,1,0,0]
["Q54","RQ3","BIRMINGHAM CHILDREN'S HOSPITAL NHS FOUNDATION TRUST","Child & Adolescent Mental Health Services",6,0.66666666666666663,0,3,1,0,0,0,2]
["Q54","TAJ","BLACK COUNTRY PARTNERSHIP NHS FOUNDATION TRUST","Mental Health Other",78,0.92307692307692313,1.282051282051282E-2,50,22,1,0,1,4]
["Q54","RYK","DUDLEY AND WALSALL MENTAL HEALTH PARTNERSHIP NHS TRUST","Secondary Care Community Services",178,0.8146067415730337,0,66,79,12,0,0,21]
["Q55","RXM","DERBYSHIRE HEALTHCARE NHS FOUNDATION TRUST","Acute Services",13,0.69230769230769229,0.23076923076923078,4,5,0,2,1,1]
["Q55","RXM","DERBYSHIRE HEALTHCARE NHS FOUNDATION TRUST","Mental Health Other",10,0.9,0,9,0,0,0,0,1]
["Q55","RXM","DERBYSHIRE HEALTHCARE NHS FOUNDATION TRUST","Secondary Care Community Services",7,1,0,6,1,0,0,0,0]
["Q55","RXM","DERBYSHIRE HEALTHCARE NHS FOUNDATION TRUST","Secure & Forensic Services",5,0.2,0,1,0,0,0,0,4]
["Q55","RXM","DERBYSHIRE HEALTHCARE NHS FOUNDATION TRUST","Specialist Services",13,0.76923076923076927,0.23076923076923078,9,1,0,0,3,0]
["Q55","RHA","NOTTINGHAMSHIRE HEALTHCARE NHS FOUNDATION TRUST","Acute Services",48,0.91666666666666663,2.0833333333333332E-2,21,23,2,0,1,1]
["Q55","RHA","NOTTINGHAMSHIRE HEALTHCARE NHS FOUNDATION TRUST","Child & Adolescent Mental Health Services",21,0.80952380952380953,9.5238095238095233E-2,"*","*","*","*","*","*"]
["Q55","RHA","NOTTINGHAMSHIRE HEALTHCARE NHS FOUNDATION TRUST","Primary Care",72,0.98611111111111116,0,64,7,1,0,0,0]
["Q55","RHA","NOTTINGHAMSHIRE HEALTHCARE NHS FOUNDATION TRUST","Secondary Care Community Services",184,0.94565217391304346,3.2608695652173912E-2,128,46,2,0,6,2]
["Q55","RHA","NOTTINGHAMSHIRE HEALTHCARE NHS FOUNDATION TRUST","Secure & Forensic Services",2,"*","*","*","*","*","*","*","*"]
["Q55","RHA","NOTTINGHAMSHIRE HEALTHCARE NHS FOUNDATION TRUST","Specialist Services",25,0.92,0.04,19,4,1,0,1,0]
["Q56","RT1","CAMBRIDGESHIRE AND PETERBOROUGH NHS FOUNDATION TRUST","Acute Services",136,0.74264705882352944,5.8823529411764705E-2,50,51,9,5,3,18]
["Q56","RT1","CAMBRIDGESHIRE AND PETERBOROUGH NHS FOUNDATION TRUST","Child & Adolescent Mental Health Services",25,0.96,0,13,11,0,0,0,1]
["Q56","RT1","CAMBRIDGESHIRE AND PETERBOROUGH NHS FOUNDATION TRUST","Mental Health Other",1,"*","*","*","*","*","*","*","*"]
["Q56","RT1","CAMBRIDGESHIRE AND PETERBOROUGH NHS FOUNDATION TRUST","Primary Care",72,0.98611111111111116,0,55,16,1,0,0,0]
["Q56","RT1","CAMBRIDGESHIRE AND PETERBOROUGH NHS FOUNDATION TRUST","Secondary Care Community Services",191,0.87434554973821987,1.0471204188481676E-2,118,49,6,0,2,16]
["Q56","RT1","CAMBRIDGESHIRE AND PETERBOROUGH NHS FOUNDATION TRUST","Secure & Forensic Services",4,"*","*","*","*","*","*","*","*"]
["Q56","RT1","CAMBRIDGESHIRE AND PETERBOROUGH NHS FOUNDATION TRUST","Specialist Services",25,0.92,0,11,12,1,0,0,1]
["Q56","RMY","NORFOLK AND SUFFOLK NHS FOUNDATION TRUST","Acute Services",16,0.8125,0.125,10,3,1,1,1,0]
["Q56","RMY","NORFOLK AND SUFFOLK NHS FOUNDATION TRUST","Secondary Care Community Services",30,0.8666666666666667,6.6666666666666666E-2,18,8,1,1,1,1]
["Q57","RRD","NORTH ESSEX PARTNERSHIP UNIVERSITY NHS FOUNDATION TRUST","Mental Health Other",96,0.71875,0.14583333333333334,32,37,8,4,10,5]
["Q57","RWN","SOUTH ESSEX PARTNERSHIP UNIVERSITY NHS FOUNDATION TRUST","Acute Services",59,0.76271186440677963,0.1864406779661017,28,17,3,7,4,0]
["Q57","RWN","SOUTH ESSEX PARTNERSHIP UNIVERSITY NHS FOUNDATION TRUST","Child & Adolescent Mental Health Services",70,0.9285714285714286,2.8571428571428571E-2,48,17,3,2,0,0]
["Q57","RWN","SOUTH ESSEX PARTNERSHIP UNIVERSITY NHS FOUNDATION TRUST","Mental Health Other",2,"*","*","*","*","*","*","*","*"]
["Q57","RWN","SOUTH ESSEX PARTNERSHIP UNIVERSITY NHS FOUNDATION TRUST","Primary Care",4,"*","*","*","*","*","*","*","*"]
["Q57","RWN","SOUTH ESSEX PARTNERSHIP UNIVERSITY NHS FOUNDATION TRUST","Secondary Care Community Services",84,0.91666666666666663,3.5714285714285712E-2,50,27,4,0,3,0]
["Q57","RWN","SOUTH ESSEX PARTNERSHIP UNIVERSITY NHS FOUNDATION TRUST","Specialist Services",27,0.92592592592592593,7.407407407407407E-2,16,9,0,1,1,0]
["Q58","RY4","HERTFORDSHIRE COMMUNITY NHS TRUST","Child & Adolescent Mental Health Services",11,1,0,9,2,0,0,0,0]
["Q58","RWR","HERTFORDSHIRE PARTNERSHIP UNIVERSITY NHS FOUNDATION TRUST","Acute Services",118,0.85593220338983056,5.0847457627118647E-2,63,38,8,3,3,3]
["Q58","RWR","HERTFORDSHIRE PARTNERSHIP UNIVERSITY NHS FOUNDATION TRUST","Child & Adolescent Mental Health Services",55,0.76363636363636367,7.2727272727272724E-2,26,16,6,2,2,3]
["Q58","RWR","HERTFORDSHIRE PARTNERSHIP UNIVERSITY NHS FOUNDATION TRUST","Primary Care",19,0.89473684210526316,0.10526315789473684,14,3,0,0,2,0]
["Q58","RWR","HERTFORDSHIRE PARTNERSHIP UNIVERSITY NHS FOUNDATION TRUST","Secondary Care Community Services",106,0.71698113207547165,0.12264150943396226,46,30,7,6,7,10]
["Q58","RWR","HERTFORDSHIRE PARTNERSHIP UNIVERSITY NHS FOUNDATION TRUST","Secure & Forensic Services",8,0.625,0.125,1,4,2,1,0,0]
["Q58","RWR","HERTFORDSHIRE PARTNERSHIP UNIVERSITY NHS FOUNDATION TRUST","Specialist Services",5,1,0,0,5,0,0,0,0]
["Q58","RP1","NORTHAMPTONSHIRE HEALTHCARE NHS FOUNDATION TRUST","Acute Services",63,0.82539682539682535,4.7619047619047616E-2,28,24,6,2,1,2]
["Q58","RP1","NORTHAMPTONSHIRE HEALTHCARE NHS FOUNDATION TRUST","Child & Adolescent Mental Health Services",83,0.87951807228915657,1.2048192771084338E-2,38,35,5,0,1,4]
["Q58","RP1","NORTHAMPTONSHIRE HEALTHCARE NHS FOUNDATION TRUST","Mental Health Other",7,1,0,5,2,0,0,0,0]
["Q58","RP1","NORTHAMPTONSHIRE HEALTHCARE NHS FOUNDATION TRUST","Secondary Care Community Services",169,0.9349112426035503,1.1834319526627219E-2,131,27,6,1,1,3]
["Q58","RP1","NORTHAMPTONSHIRE HEALTHCARE NHS FOUNDATION TRUST","Specialist Services",10,1,0,10,0,0,0,0,0]
["Q59","RT5","LEICESTERSHIRE PARTNERSHIP NHS TRUST","Acute Services",48,0.66666666666666663,0.25,17,15,2,5,7,2]
["Q59","RT5","LEICESTERSHIRE PARTNERSHIP NHS TRUST","Child & Adolescent Mental Health Services",55,0.92727272727272725,1.8181818181818181E-2,37,14,3,0,1,0]
["Q59","RT5","LEICESTERSHIRE PARTNERSHIP NHS TRUST","Mental Health Other",15,0.93333333333333335,0,8,6,0,0,0,1]
["Q59","RT5","LEICESTERSHIRE PARTNERSHIP NHS TRUST","Secondary Care Community Services",141,0.95744680851063835,7.0921985815602835E-3,103,32,0,1,0,5]
["Q59","RT5","LEICESTERSHIRE PARTNERSHIP NHS TRUST","Specialist Services",31,0.87096774193548387,0,25,2,4,0,0,0]
["Q59","RP7","LINCOLNSHIRE PARTNERSHIP NHS FOUNDATION TRUST","Acute Services",36,0.86111111111111116,2.7777777777777776E-2,17,14,4,1,0,0]
["Q59","RP7","LINCOLNSHIRE PARTNERSHIP NHS FOUNDATION TRUST","Child & Adolescent Mental Health Services",128,0.859375,7.8125E-3,55,55,13,0,1,4]
["Q59","RP7","LINCOLNSHIRE PARTNERSHIP NHS FOUNDATION TRUST","Mental Health Other",8,1,0,4,4,0,0,0,0]
["Q59","RP7","LINCOLNSHIRE PARTNERSHIP NHS FOUNDATION TRUST","Primary Care",462,0.97835497835497831,4.329004329004329E-3,396,56,6,2,0,2]
["Q59","RP7","LINCOLNSHIRE PARTNERSHIP NHS FOUNDATION TRUST","Secondary Care Community Services",110,0.9363636363636364,1.8181818181818181E-2,74,29,3,1,1,2]
["Q59","RP7","LINCOLNSHIRE PARTNERSHIP NHS FOUNDATION TRUST","Specialist Services",13,0.92307692307692313,0,11,1,0,0,0,1]
["Q60","RLY","NORTH STAFFORDSHIRE COMBINED HEALTHCARE NHS TRUST","Acute Services",46,0.89130434782608692,6.5217391304347824E-2,30,11,1,2,1,1]
["Q60","RLY","NORTH STAFFORDSHIRE COMBINED HEALTHCARE NHS TRUST","Secondary Care Community Services",12,0.91666666666666663,0,9,2,1,0,0,0]
["Q60","R1D","SHROPSHIRE COMMUNITY HEALTH NHS TRUST","Child & Adolescent Mental Health Services",20,0.85,0.1,15,2,0,0,2,1]
["Q60","RRE","SOUTH STAFFORDSHIRE AND SHROPSHIRE HEALTHCARE NHS FOUNDATION TRUST","Acute Services",25,0.8,0.08,8,12,1,1,1,2]
["Q60","RRE","SOUTH STAFFORDSHIRE AND SHROPSHIRE HEALTHCARE NHS FOUNDATION TRUST","Child & Adolescent Mental Health Services",14,1,0,13,1,0,0,0,0]
["Q60","RRE","SOUTH STAFFORDSHIRE AND SHROPSHIRE HEALTHCARE NHS FOUNDATION TRUST","Mental Health Other",5,1,0,3,2,0,0,0,0]
["Q60","RRE","SOUTH STAFFORDSHIRE AND SHROPSHIRE HEALTHCARE NHS FOUNDATION TRUST","Primary Care",19,0.89473684210526316,0,12,5,1,0,0,1]
["Q60","RRE","SOUTH STAFFORDSHIRE AND SHROPSHIRE HEALTHCARE NHS FOUNDATION TRUST","Secondary Care Community Services",72,0.80555555555555558,8.3333333333333329E-2,38,20,3,3,3,5]
["Q64","RTQ","2GETHER NHS FOUNDATION TRUST","Acute Services",30,0.83333333333333337,6.6666666666666666E-2,15,10,2,1,1,1]
["Q64","RTQ","2GETHER NHS FOUNDATION TRUST","Child & Adolescent Mental Health Services",24,0.91666666666666663,8.3333333333333329E-2,15,7,0,1,1,0]
["Q64","RTQ","2GETHER NHS FOUNDATION TRUST","Mental Health Other",22,0.95454545454545459,0,11,10,1,0,0,0]
["Q64","RTQ","2GETHER NHS FOUNDATION TRUST","Primary Care",10,0.8,0.1,5,3,0,0,1,1]
["Q64","RTQ","2GETHER NHS FOUNDATION TRUST","Secondary Care Community Services",193,0.84974093264248707,5.181347150259067E-2,106,58,12,8,2,7]
["Q64","RTQ","2GETHER NHS FOUNDATION TRUST","Specialist Services",16,1,0,14,2,0,0,0,0]
["Q64","RVN","AVON AND WILTSHIRE MENTAL HEALTH PARTNERSHIP NHS TRUST","Acute Services",85,0.78823529411764703,9.4117647058823528E-2,45,22,6,4,4,4]
["Q64","RVN","AVON AND WILTSHIRE MENTAL HEALTH PARTNERSHIP NHS TRUST","Mental Health Other",89,0.9550561797752809,0,57,28,3,0,0,1]
["Q64","RVN","AVON AND WILTSHIRE MENTAL HEALTH PARTNERSHIP NHS TRUST","Primary Care",3,"*","*","*","*","*","*","*","*"]
["Q64","RVN","AVON AND WILTSHIRE MENTAL HEALTH PARTNERSHIP NHS TRUST","Secondary Care Community Services",424,0.89858490566037741,2.1226415094339621E-2,267,114,25,4,5,9]
["Q64","RVN","AVON AND WILTSHIRE MENTAL HEALTH PARTNERSHIP NHS TRUST","Secure & Forensic Services",9,0.88888888888888884,0.1111111111111111,"*","*","*","*","*","*"]
["Q64","RVN","AVON AND WILTSHIRE MENTAL HEALTH PARTNERSHIP NHS TRUST","Specialist Services",110,0.9363636363636364,0,72,31,2,0,0,5]
["Q65","RH5","SOMERSET PARTNERSHIP NHS FOUNDATION TRUST","Acute Services",25,0.76,0.04,12,7,4,0,1,1]
["Q65","RH5","SOMERSET PARTNERSHIP NHS FOUNDATION TRUST","Child & Adolescent Mental Health Services",27,1,0,19,8,0,0,0,0]
["Q65","RH5","SOMERSET PARTNERSHIP NHS FOUNDATION TRUST","Mental Health Other",10,0.9,0,3,6,0,0,0,1]
["Q65","RH5","SOMERSET PARTNERSHIP NHS FOUNDATION TRUST","Specialist Services",130,0.96153846153846156,1.5384615384615385E-2,96,29,2,1,1,1]
["Q66","RJ8","CORNWALL PARTNERSHIP NHS FOUNDATION TRUST","Acute Services",13,0.76923076923076927,7.6923076923076927E-2,7,3,0,1,0,2]
["Q66","RJ8","CORNWALL PARTNERSHIP NHS FOUNDATION TRUST","Child & Adolescent Mental Health Services",2,"*","*","*","*","*","*","*","*"]
["Q66","RJ8","CORNWALL PARTNERSHIP NHS FOUNDATION TRUST","Secondary Care Community Services",187,0.89304812834224601,4.8128342245989303E-2,120,47,7,1,8,4]
["Q66","RJ8","CORNWALL PARTNERSHIP NHS FOUNDATION TRUST","Specialist Services",2,"*","*","*","*","*","*","*","*"]
["Q66","RWV","DEVON PARTNERSHIP NHS TRUST","Acute Services",11,0.90909090909090906,0,7,3,0,0,0,1]
["Q66","RWV","DEVON PARTNERSHIP NHS TRUST","Primary Care",1,"*","*","*","*","*","*","*","*"]
["Q66","RWV","DEVON PARTNERSHIP NHS TRUST","Secondary Care Community Services",34,0.94117647058823528,5.8823529411764705E-2,28,4,0,1,1,0]
["Q66","RWV","DEVON PARTNERSHIP NHS TRUST","Secure & Forensic Services",9,1,0,3,6,0,0,0,0]
["Q66","RWV","DEVON PARTNERSHIP NHS TRUST","Specialist Services",3,"*","*","*","*","*","*","*","*"]
["Q67","RXY","KENT AND MEDWAY NHS AND SOCIAL CARE PARTNERSHIP TRUST","Acute Services",56,0.75,0.14285714285714285,32,10,4,3,5,2]
["Q67","RXY","KENT AND MEDWAY NHS AND SOCIAL CARE PARTNERSHIP TRUST","Secondary Care Community Services",74,0.90540540540540537,4.0540540540540543E-2,53,14,3,1,2,1]
["Q67","RXY","KENT AND MEDWAY NHS AND SOCIAL CARE PARTNERSHIP TRUST","Specialist Services",6,0.66666666666666663,0,3,1,0,0,0,2]
["Q68","RXX","SURREY AND BORDERS PARTNERSHIP NHS FOUNDATION TRUST","Acute Services",57,0.68421052631578949,0.22807017543859648,20,19,5,4,9,0]
["Q68","RXX","SURREY AND BORDERS PARTNERSHIP NHS FOUNDATION TRUST","Child & Adolescent Mental Health Services",15,0.93333333333333335,0,9,5,1,0,0,0]
["Q68","RXX","SURREY AND BORDERS PARTNERSHIP NHS FOUNDATION TRUST","Mental Health Other",12,1,0,"*","*","*","*","*","*"]
["Q68","RXX","SURREY AND BORDERS PARTNERSHIP NHS FOUNDATION TRUST","Secondary Care Community Services",135,0.87407407407407411,2.9629629629629631E-2,64,54,12,2,2,1]
["Q68","RXX","SURREY AND BORDERS PARTNERSHIP NHS FOUNDATION TRUST","Specialist Services",4,"*","*","*","*","*","*","*","*"]
["Q68","RX2","SUSSEX PARTNERSHIP NHS FOUNDATION TRUST","Acute Services",89,0.8314606741573034,4.49438202247191E-2,50,24,11,2,2,0]
["Q68","RX2","SUSSEX PARTNERSHIP NHS FOUNDATION TRUST","Child & Adolescent Mental Health Services",70,0.82857142857142863,2.8571428571428571E-2,34,24,8,2,0,2]
["Q68","RX2","SUSSEX PARTNERSHIP NHS FOUNDATION TRUST","Primary Care",4,"*","*","*","*","*","*","*","*"]
["Q68","RX2","SUSSEX PARTNERSHIP NHS FOUNDATION TRUST","Secondary Care Community Services",49,0.95918367346938771,4.0816326530612242E-2,35,12,0,1,1,0]
["Q68","RX2","SUSSEX PARTNERSHIP NHS FOUNDATION TRUST","Secure & Forensic Services",12,0.91666666666666663,0,4,7,1,0,0,0]
["Q68","RX2","SUSSEX PARTNERSHIP NHS FOUNDATION TRUST","Specialist Services",5,0.8,0,"*","*","*","*","*","*"]
["Q69","RWX","BERKSHIRE HEALTHCARE NHS FOUNDATION TRUST","Acute Services",19,0.63157894736842102,0.26315789473684209,4,8,0,1,4,2]
["Q69","RWX","BERKSHIRE HEALTHCARE NHS FOUNDATION TRUST","Child & Adolescent Mental Health Services",13,1,0,"*","*","*","*","*","*"]
["Q69","RWX","BERKSHIRE HEALTHCARE NHS FOUNDATION TRUST","Primary Care",47,0.93617021276595747,2.1276595744680851E-2,39,5,1,0,1,1]
["Q69","RWX","BERKSHIRE HEALTHCARE NHS FOUNDATION TRUST","Secondary Care Community Services",1,"*","*","*","*","*","*","*","*"]
["Q69","RNU","OXFORD HEALTH NHS FOUNDATION TRUST","Acute Services",18,0.88888888888888884,0.1111111111111111,9,7,0,1,1,0]
["Q69","RNU","OXFORD HEALTH NHS FOUNDATION TRUST","Child & Adolescent Mental Health Services",44,0.77272727272727271,6.8181818181818177E-2,16,18,2,2,1,5]
["Q69","RNU","OXFORD HEALTH NHS FOUNDATION TRUST","Secondary Care Community Services",308,0.81818181818181823,4.2207792207792208E-2,144,108,34,6,7,9]
["Q69","RNU","OXFORD HEALTH NHS FOUNDATION TRUST","Specialist Services",128,0.984375,7.8125E-3,95,31,1,0,1,0]
["Q70","RDY","DORSET HEALTHCARE UNIVERSITY NHS FOUNDATION TRUST","Acute Services",37,0.97297297297297303,0,30,6,1,0,0,0]
["Q70","RDY","DORSET HEALTHCARE UNIVERSITY NHS FOUNDATION TRUST","Child & Adolescent Mental Health Services",33,0.96969696969696972,3.0303030303030304E-2,25,7,0,0,1,0]
["Q70","RDY","DORSET HEALTHCARE UNIVERSITY NHS FOUNDATION TRUST","Mental Health Other",3,"*","*","*","*","*","*","*","*"]
["Q70","RDY","DORSET HEALTHCARE UNIVERSITY NHS FOUNDATION TRUST","Primary Care",276,0.97826086956521741,0,243,27,3,0,0,3]
["Q70","RDY","DORSET HEALTHCARE UNIVERSITY NHS FOUNDATION TRUST","Secondary Care Community Services",144,0.84722222222222221,4.8611111111111112E-2,84,38,10,6,1,5]
["Q70","RDY","DORSET HEALTHCARE UNIVERSITY NHS FOUNDATION TRUST","Specialist Services",13,1,0,"*","*","*","*","*","*"]
["Q70","R1F","ISLE OF WIGHT NHS TRUST","Acute Services",4,"*","*","*","*","*","*","*","*"]
["Q70","R1F","ISLE OF WIGHT NHS TRUST","Secondary Care Community Services",18,0.94444444444444442,0,"*","*","*","*","*","*"]
["Q70","R1C","SOLENT NHS TRUST","Acute Services",42,0.95238095238095233,4.7619047619047616E-2,23,17,0,0,2,0]
["Q70","R1C","SOLENT NHS TRUST","Child & Adolescent Mental Health Services",16,0.9375,0,15,0,0,0,0,1]
["Q70","R1C","SOLENT NHS TRUST","Mental Health Other",76,0.93421052631578949,2.6315789473684209E-2,45,26,2,1,1,1]
["Q70","R1C","SOLENT NHS TRUST","Secondary Care Community Services",43,0.95348837209302328,0,30,11,2,0,0,0]
["Q70","RW1","SOUTHERN HEALTH NHS FOUNDATION TRUST","Acute Services",39,0.74358974358974361,0.12820512820512819,15,14,5,5,0,0]
["Q70","RW1","SOUTHERN HEALTH NHS FOUNDATION TRUST","Child & Adolescent Mental Health Services",7,0.14285714285714285,0.2857142857142857,0,1,3,0,2,1]
["Q70","RW1","SOUTHERN HEALTH NHS FOUNDATION TRUST","Mental Health Other",31,1,0,28,3,0,0,0,0]
["Q70","RW1","SOUTHERN HEALTH NHS FOUNDATION TRUST","Primary Care",181,0.89502762430939231,2.2099447513812154E-2,112,50,0,0,4,15]
["Q70","RW1","SOUTHERN HEALTH NHS FOUNDATION TRUST","Secondary Care Community Services",244,0.88114754098360659,4.9180327868852458E-2,125,90,12,9,3,5]
["Q70","RW1","SOUTHERN HEALTH NHS FOUNDATION TRUST","Secure & Forensic Services",8,0.5,0.125,2,2,2,1,0,1]
["Q71","RRP","BARNET, ENFIELD AND HARINGEY MENTAL HEALTH NHS TRUST","Acute Services",201,0.87562189054726369,1.9900497512437811E-2,69,107,18,1,3,3]
["Q71","RRP","BARNET, ENFIELD AND HARINGEY MENTAL HEALTH NHS TRUST","Child & Adolescent Mental Health Services",22,0.27272727272727271,0.5,"*","*","*","*","*","*"]
["Q71","RRP","BARNET, ENFIELD AND HARINGEY MENTAL HEALTH NHS TRUST","Mental Health Other",1,"*","*","*","*","*","*","*","*"]
["Q71","RRP","BARNET, ENFIELD AND HARINGEY MENTAL HEALTH NHS TRUST","Secondary Care Community Services",609,0.84893267651888338,2.1346469622331693E-2,297,220,57,9,4,22]
["Q71","RRP","BARNET, ENFIELD AND HARINGEY MENTAL HEALTH NHS TRUST","Secure & Forensic Services",81,0.7407407407407407,0.1111111111111111,18,42,11,5,4,1]
["Q71","TAF","CAMDEN AND ISLINGTON NHS FOUNDATION TRUST","Mental Health Other",42,0.73809523809523814,0.23809523809523808,18,13,1,4,6,0]
["Q71","RV3","CENTRAL AND NORTH WEST LONDON NHS FOUNDATION TRUST","Acute Services",15,0.6,6.6666666666666666E-2,6,3,3,0,1,2]
["Q71","RV3","CENTRAL AND NORTH WEST LONDON NHS FOUNDATION TRUST","Child & Adolescent Mental Health Services",27,0.85185185185185186,3.7037037037037035E-2,10,13,3,0,1,0]
["Q71","RV3","CENTRAL AND NORTH WEST LONDON NHS FOUNDATION TRUST","Secondary Care Community Services",44,0.84090909090909094,9.0909090909090912E-2,21,16,2,1,3,1]
["Q71","RWK","EAST LONDON NHS FOUNDATION TRUST","Acute Services",98,0.69387755102040816,0.16326530612244897,25,43,9,11,5,5]
["Q71","RAT","NORTH EAST LONDON NHS FOUNDATION TRUST","Acute Services",83,0.77108433734939763,6.0240963855421686E-2,31,33,11,0,5,3]
["Q71","RAT","NORTH EAST LONDON NHS FOUNDATION TRUST","Child & Adolescent Mental Health Services",12,0.5,8.3333333333333329E-2,4,2,3,1,0,2]
["Q71","RAT","NORTH EAST LONDON NHS FOUNDATION TRUST","Mental Health Other",39,0.84615384615384615,7.6923076923076927E-2,22,11,3,1,2,0]
["Q71","RAT","NORTH EAST LONDON NHS FOUNDATION TRUST","Primary Care",5,0.8,0,4,0,1,0,0,0]
["Q71","RAT","NORTH EAST LONDON NHS FOUNDATION TRUST","Secondary Care Community Services",50,0.84,0,21,21,6,0,0,2]
["Q71","RAT","NORTH EAST LONDON NHS FOUNDATION TRUST","Specialist Services",17,0.88235294117647056,5.8823529411764705E-2,7,8,1,1,0,0]
["Q71","RPG","OXLEAS NHS FOUNDATION TRUST","Acute Services",98,0.81632653061224492,5.1020408163265307E-2,46,34,9,3,2,4]
["Q71","RPG","OXLEAS NHS FOUNDATION TRUST","Child & Adolescent Mental Health Services",4,"*","*","*","*","*","*","*","*"]
["Q71","RPG","OXLEAS NHS FOUNDATION TRUST","Mental Health Other",33,0.78787878787878785,3.0303030303030304E-2,14,12,5,1,0,1]
["Q71","RPG","OXLEAS NHS FOUNDATION TRUST","Primary Care",38,0.94736842105263153,0,30,6,0,0,0,2]
["Q71","RPG","OXLEAS NHS FOUNDATION TRUST","Secondary Care Community Services",111,0.85585585585585588,2.7027027027027029E-2,55,40,8,0,3,5]
["Q71","RPG","OXLEAS NHS FOUNDATION TRUST","Secure & Forensic Services",22,0.22727272727272727,0.40909090909090912,"*","*","*","*","*","*"]
["Q71","RV5","SOUTH LONDON AND MAUDSLEY NHS FOUNDATION TRUST","Acute Services",233,0.71673819742489275,0.14163090128755365,68,99,20,24,9,13]
["Q71","RV5","SOUTH LONDON AND MAUDSLEY NHS FOUNDATION TRUST","Child & Adolescent Mental Health Services",128,0.8125,3.90625E-2,71,33,12,2,3,7]
["Q71","RV5","SOUTH LONDON AND MAUDSLEY NHS FOUNDATION TRUST","Mental Health Other",2,"*","*","*","*","*","*","*","*"]
["Q71","RV5","SOUTH LONDON AND MAUDSLEY NHS FOUNDATION TRUST","Primary Care",13,0.76923076923076927,0,"*","*","*","*","*","*"]
["Q71","RV5","SOUTH LONDON AND MAUDSLEY NHS FOUNDATION TRUST","Secondary Care Community Services",458,0.91921397379912662,1.9650655021834062E-2,249,172,20,3,6,8]
["Q71","RV5","SOUTH LONDON AND MAUDSLEY NHS FOUNDATION TRUST","Secure & Forensic Services",39,0.79487179487179482,5.128205128205128E-2,17,14,5,1,1,1]
["Q71","RV5","SOUTH LONDON AND MAUDSLEY NHS FOUNDATION TRUST","Specialist Services",31,0.87096774193548387,0,18,9,3,0,0,1]
["Q71","RQY","SOUTH WEST LONDON AND ST GEORGE'S MENTAL HEALTH NHS TRUST","Acute Services",8,0.375,0.375,2,1,2,1,2,0]
["Q71","RQY","SOUTH WEST LONDON AND ST GEORGE'S MENTAL HEALTH NHS TRUST","Child & Adolescent Mental Health Services",1,"*","*","*","*","*","*","*","*"]
["Q71","RQY","SOUTH WEST LONDON AND ST GEORGE'S MENTAL HEALTH NHS TRUST","Mental Health Other",1,"*","*","*","*","*","*","*","*"]
["Q71","RQY","SOUTH WEST LONDON AND ST GEORGE'S MENTAL HEALTH NHS TRUST","Secondary Care Community Services",1,"*","*","*","*","*","*","*","*"]
["Q71","RQY","SOUTH WEST LONDON AND ST GEORGE'S MENTAL HEALTH NHS TRUST","Secure & Forensic Services",3,"*","*","*","*","*","*","*","*"]
["Q71","RNK","TAVISTOCK AND PORTMAN NHS FOUNDATION TRUST","Mental Health Other",110,0.9363636363636364,6.363636363636363E-2,93,10,0,4,3,0]
["Q71","RRV","UNIVERSITY COLLEGE LONDON HOSPITALS NHS FOUNDATION TRUST","Specialist Services",2,"*","*","*","*","*","*","*","*"]
["Q71","RKL","WEST LONDON MENTAL HEALTH NHS TRUST","Acute Services",12,0.25,0.33333333333333331,1,2,3,2,2,2]
["Q71","RKL","WEST LONDON MENTAL HEALTH NHS TRUST","Child & Adolescent Mental Health Services",29,0.82758620689655171,3.4482758620689655E-2,12,12,2,0,1,2]
["Q71","RKL","WEST LONDON MENTAL HEALTH NHS TRUST","Primary Care",42,0.97619047619047616,0,30,11,0,0,0,1]
["Q71","RKL","WEST LONDON MENTAL HEALTH NHS TRUST","Secondary Care Community Services",88,0.96590909090909094,3.4090909090909088E-2,55,30,0,0,3,0]
["Q71","RKL","WEST LONDON MENTAL HEALTH NHS TRUST","Secure & Forensic Services",106,0.56603773584905659,0.22641509433962265,24,36,11,13,11,11]
["IS1","NVR","ALPHA HOSPITALS","Child & Adolescent Mental Health Services",14,0.42857142857142855,0.21428571428571427,3,3,4,1,2,1]
["IS1","NVR","ALPHA HOSPITALS","Secure & Forensic Services",14,0.7142857142857143,0.21428571428571427,4,6,1,2,1,0]
["IS1","NWX","BRIGHTON & HOVE INTEGRATED CARE SERVICE","Primary Care",61,0.88524590163934425,3.2786885245901641E-2,42,12,5,1,1,0]
["IS1","NNF","CITY HEALTH CARE PARTNERSHIP CIC","Primary Care",151,0.97350993377483441,6.6225165562913907E-3,"*","*","*","*","*","*"]
["IS1","NNF","CITY HEALTH CARE PARTNERSHIP CIC","Specialist Services",1,"*","*","*","*","*","*","*","*"]
["IS1","NMJ","CYGNET HEALTH CARE LIMITED","Child & Adolescent Mental Health Services",2,"*","*","*","*","*","*","*","*"]
["IS1","NMJ","CYGNET HEALTH CARE LIMITED","Secure & Forensic Services",1,"*","*","*","*","*","*","*","*"]
["IS1","NMJ","CYGNET HEALTH CARE LIMITED","Specialist Services",25,0.72,0.16,9,9,1,3,1,2]
["IS1","NQL","NAVIGO","Mental Health Other",888,0.97072072072072069,3.3783783783783786E-3,742,120,12,2,1,11]
["IS1","NR5","PLYMOUTH COMMUNITY HEALTHCARE (CIC)","Acute Services",36,0.80555555555555558,0.1111111111111111,19,10,2,2,2,1]
["IS1","NR5","PLYMOUTH COMMUNITY HEALTHCARE (CIC)","Child & Adolescent Mental Health Services",2,"*","*","*","*","*","*","*","*"]
["IS1","NR5","PLYMOUTH COMMUNITY HEALTHCARE (CIC)","Secondary Care Community Services",1,"*","*","*","*","*","*","*","*"]
["IS1","NDK","YARBOROUGH CLEE CARE LIMITED","Secondary Care Community Services",8,1,0,2,6,0,0,0,0]

{"sheet":"BS","index":4,"n_rows":282,"n_cols":26,"rows_kept":282,"cut":false,"hidden":true,"merged":[]}
[null,"Sort","Area code","Area name","Trust code","Trust name","Category",null,"Code…","Name…","Name…","Please select criteria…","Please select criteria…","Please select criteria…",null,null,"Code…","Code…","Name…","Category…","<--fixed lists, linked lists -->","Code…","Name…","Code…","Name…","Category…"]
["Areas",1,1,1,"-","-","-",null,"IS1","Independent Sector Provider","Arden, Herefordshire And Worcestershire Area Team","Area Team Code","Area Team Code","Area Team Code",null,null,"Q44","RTV","5 BOROUGHS PARTNERSHIP NHS FOUNDATION TRUST","Acute Services",null,"NDK","2GETHER NHS FOUNDATION TRUST","NDK","YARBOROUGH CLEE CARE LIMITED","Acute Services"]
["Trusts",1,1,1,1,1,"-",null,"Q44","Cheshire, Warrington And Wirral Area Team","Bath, Gloucestershire, Swindon And Wiltshire Area Team","Area Team Name","Trust Code","Trust Code",null,null,"Q44","RTV","5 BOROUGHS PARTNERSHIP NHS FOUNDATION TRUST","Child & Adolescent Mental Health Services",null,"NMJ","5 BOROUGHS PARTNERSHIP NHS FOUNDATION TRUST","NMJ","CYGNET HEALTH CARE LIMITED","Child & Adolescent Mental Health Services"]
["Categories",1,1,1,1,1,1,null,"Q45","Durham, Darlington And Tees Area Team","Birmingham And The Black Country Area Team","Total Responses","Trust Name","Trust Name",null,null,"Q44","RTV","5 BOROUGHS PARTNERSHIP NHS FOUNDATION TRUST","Primary Care",null,"NNF","ALDER HEY CHILDREN'S NHS FOUNDATION TRUST","NNF","CITY HEALTH CARE PARTNERSHIP CIC","Mental Health Other"]
[null,null,null,null,null,null,null,null,"Q46","Greater Manchester Area Team","Bristol, North Somerset, Somerset And South Gloucestershire Area Team","Total Eligible","Total Responses","Category",null,null,"Q44","RTV","5 BOROUGHS PARTNERSHIP NHS FOUNDATION TRUST","Secondary Care Community Services",null,"NQL","ALPHA HOSPITALS","NQL","NAVIGO","Primary Care"]
[null,null,null,null,null,null,null,null,"Q47","Lancashire Area Team","Cheshire, Warrington And Wirral Area Team","Percentage Recommended","Total Eligible","Total Responses",null,null,"Q44","RTV","5 BOROUGHS PARTNERSHIP NHS FOUNDATION TRUST","Secure & Forensic Services",null,"NR5","AVON AND WILTSHIRE MENTAL HEALTH PARTNERSHIP NHS TRUST","NR5","PLYMOUTH COMMUNITY HEALTHCARE (CIC)","Secondary Care Community Services"]
[null,null,null,null,null,null,null,null,"Q48","Merseyside Area Team","Cumbria, Northumberland, Tyne And Wear Area Team","Percentage Not  Recommended","Percentage Recommended","Percentage Recommended",null,null,"Q44","RTV","5 BOROUGHS PARTNERSHIP NHS FOUNDATION TRUST","Specialist Services",null,"NVR","BARNET, ENFIELD AND HARINGEY MENTAL HEALTH NHS TRUST","NVR","ALPHA HOSPITALS","Secure & Forensic Services"]
[null,null,null,null,null,null,null,null,"Q49","Cumbria, Northumberland, Tyne And Wear Area Team","Derbyshire And Nottinghamshire Area Team","Extremely Likely","Percentage Not  Recommended","Percentage Not  Recommended",null,null,"Q44","RXA","CHESHIRE AND WIRRAL PARTNERSHIP NHS FOUNDATION TRUST","Acute Services",null,"NWX","BERKSHIRE HEALTHCARE NHS FOUNDATION TRUST","NWX","BRIGHTON & HOVE INTEGRATED CARE SERVICE","Specialist Services"]
[null,null,null,null,null,null,null,null,"Q50","North Yorkshire And Humber Area Team","Devon, Cornwall And Isles Of Scilly Area Team","Likely","Extremely Likely","Extremely Likely",null,null,"Q45","RX3","TEES, ESK AND WEAR VALLEYS NHS FOUNDATION TRUST","Acute Services",null,"R1A","BIRMINGHAM AND SOLIHULL MENTAL HEALTH NHS FOUNDATION TRUST","R1A","WORCESTERSHIRE HEALTH AND CARE NHS TRUST"]
[null,null,null,null,null,null,null,null,"Q51","South Yorkshire And Bassetlaw Area Team","Durham, Darlington And Tees Area Team","Neither","Likely","Likely",null,null,"Q45","RX3","TEES, ESK AND WEAR VALLEYS NHS FOUNDATION TRUST","Child & Adolescent Mental Health Services",null,"R1C","BIRMINGHAM CHILDREN'S HOSPITAL NHS FOUNDATION TRUST","R1C","SOLENT NHS TRUST"]
[null,null,null,null,null,null,null,null,"Q52","West Yorkshire Area Team","East Anglia Area Team","Unlikely","Neither","Neither",null,null,"Q45","RX3","TEES, ESK AND WEAR VALLEYS NHS FOUNDATION TRUST","Mental Health Other",null,"R1D","BLACK COUNTRY PARTNERSHIP NHS FOUNDATION TRUST","R1D","SHROPSHIRE COMMUNITY HEALTH NHS TRUST"]
[null,null,null,null,null,null,null,null,"Q53","Arden, Herefordshire And Worcestershire Area Team","Essex Area Team","Extremely Unlikely","Unlikely","Unlikely",null,null,"Q45","RX3","TEES, ESK AND WEAR VALLEYS NHS FOUNDATION TRUST","Primary Care",null,"R1F","BLACKPOOL TEACHING HOSPITALS NHS FOUNDATION TRUST","R1F","ISLE OF WIGHT NHS TRUST"]
[null,null,null,null,null,null,null,null,"Q54","Birmingham And The Black Country Area Team","Greater Manchester Area Team","Don't Know","Extremely Unlikely","Extremely Unlikely",null,null,"Q45","RX3","TEES, ESK AND WEAR VALLEYS NHS FOUNDATION TRUST","Secondary Care Community Services",null,"RAT","BRADFORD DISTRICT CARE TRUST","RAT","NORTH EAST LONDON NHS FOUNDATION TRUST"]
[null,null,null,null,null,null,null,null,"Q55","Derbyshire And Nottinghamshire Area Team","Hertfordshire And The South Midlands Area Team",null,"Don't Know","Don't Know",null,null,"Q45","RX3","TEES, ESK AND WEAR VALLEYS NHS FOUNDATION TRUST","Secure & Forensic Services",null,"RBS","BRIGHTON & HOVE INTEGRATED CARE SERVICE","RBS","ALDER HEY CHILDREN'S NHS FOUNDATION TRUST"]
[null,null,null,null,null,null,null,null,"Q56","East Anglia Area Team","Independent Sector Provider",null,"SMS/Text / Smartphone App",null,null,null,"Q45","RX3","TEES, ESK AND WEAR VALLEYS NHS FOUNDATION TRUST","Specialist Services",null,"RDY","CAMBRIDGESHIRE AND PETERBOROUGH NHS FOUNDATION TRUST","RDY","DORSET HEALTHCARE UNIVERSITY NHS FOUNDATION TRUST"]
[null,null,null,null,null,null,null,null,"Q57","Essex Area Team","Kent And Medway Area Team",null,"Electronic tablet/kiosk at point of discharge",null,null,null,"Q46","RXV","GREATER MANCHESTER WEST MENTAL HEALTH NHS FOUNDATION TRUST","Acute Services",null,"RE9","CAMDEN AND ISLINGTON NHS FOUNDATION TRUST","RE9","SOUTH TYNESIDE NHS FOUNDATION TRUST"]
[null,null,null,null,null,null,null,null,"Q58","Hertfordshire And The South Midlands Area Team","Lancashire Area Team",null,"Paper / postcard at point of discharge",null,null,null,"Q46","RXV","GREATER MANCHESTER WEST MENTAL HEALTH NHS FOUNDATION TRUST","Primary Care",null,"RGD","CENTRAL AND NORTH WEST LONDON NHS FOUNDATION TRUST","RGD","LEEDS AND YORK PARTNERSHIP NHS FOUNDATION TRUST"]
[null,null,null,null,null,null,null,null,"Q59","Leicestershire And Lincolnshire Area Team","Leicestershire And Lincolnshire Area Team",null,"Paper survey, sent to the patients home",null,null,null,"Q46","RXV","GREATER MANCHESTER WEST MENTAL HEALTH NHS FOUNDATION TRUST","Secondary Care Community Services",null,"RH5","CHESHIRE AND WIRRAL PARTNERSHIP NHS FOUNDATION TRUST","RH5","SOMERSET PARTNERSHIP NHS FOUNDATION TRUST"]
[null,null,null,null,null,null,null,null,"Q60","Shropshire And Staffordshire Area Team","London Area Team",null,"Telephone survey once patient is home",null,null,null,"Q46","RXV","GREATER MANCHESTER WEST MENTAL HEALTH NHS FOUNDATION TRUST","Secure & Forensic Services",null,"RHA","CITY HEALTH CARE PARTNERSHIP CIC","RHA","NOTTINGHAMSHIRE HEALTHCARE NHS FOUNDATION TRUST"]
[null,null,null,null,null,null,null,null,"Q64","Bath, Gloucestershire, Swindon And Wiltshire Area Team","Merseyside Area Team",null,"Online survey once patient is home",null,null,null,"Q46","RXV","GREATER MANCHESTER WEST MENTAL HEALTH NHS FOUNDATION TRUST","Specialist Services",null,"RJ8","CORNWALL PARTNERSHIP NHS FOUNDATION TRUST","RJ8","CORNWALL PARTNERSHIP NHS FOUNDATION TRUST"]
[null,null,null,null,null,null,null,null,"Q65","Bristol, North Somerset, Somerset And South Gloucestershire Area Team","North Yorkshire And Humber Area Team",null,"Other",null,null,null,"Q46","TAE","MANCHESTER MENTAL HEALTH AND SOCIAL CARE TRUST","Acute Services",null,"RKL","COVENTRY AND WARWICKSHIRE PARTNERSHIP NHS TRUST","RKL","WEST LONDON MENTAL HEALTH NHS TRUST"]
[null,null,null,null,null,null,null,null,"Q66","Devon, Cornwall And Isles Of Scilly Area Team","Shropshire And Staffordshire Area Team",null,null,null,null,null,"Q46","TAE","MANCHESTER MENTAL HEALTH AND SOCIAL CARE TRUST","Mental Health Other",null,"RLY","CUMBRIA PARTNERSHIP NHS FOUNDATION TRUST","RLY","NORTH STAFFORDSHIRE COMBINED HEALTHCARE NHS TRUST"]
[null,null,null,null,null,null,null,null,"Q67","Kent And Medway Area Team","South Yorkshire And Bassetlaw Area Team",null,null,null,null,null,"Q46","TAE","MANCHESTER MENTAL HEALTH AND SOCIAL CARE TRUST","Primary Care",null,"RMY","CYGNET HEALTH CARE LIMITED","RMY","NORFOLK AND SUFFOLK NHS FOUNDATION TRUST"]
[null,null,null,null,null,null,null,null,"Q68","Surrey And Sussex Area Team","Surrey And Sussex Area Team",null,null,null,null,null,"Q46","TAE","MANCHESTER MENTAL HEALTH AND SOCIAL CARE TRUST","Secondary Care Community Services",null,"RNK","DERBYSHIRE HEALTHCARE NHS FOUNDATION TRUST","RNK","TAVISTOCK AND PORTMAN NHS FOUNDATION TRUST"]
[null,null,null,null,null,null,null,null,"Q69","Thames Valley Area Team","Thames Valley Area Team",null,null,null,null,null,"Q46","TAE","MANCHESTER MENTAL HEALTH AND SOCIAL CARE TRUST","Specialist Services",null,"RNN","DEVON PARTNERSHIP NHS TRUST","RNN","CUMBRIA PARTNERSHIP NHS FOUNDATION TRUST"]
[null,null,null,null,null,null,null,null,"Q70","Wessex Area Team","Wessex Area Team",null,null,null,null,null,"Q46","RT2","PENNINE CARE NHS FOUNDATION TRUST","Acute Services",null,"RNU","DORSET HEALTHCARE UNIVERSITY NHS FOUNDATION TRUST","RNU","OXFORD HEALTH NHS FOUNDATION TRUST"]
[null,null,null,null,null,null,null,null,"Q71","London Area Team","West Yorkshire Area Team",null,null,null,null,null,"Q46","RT2","PENNINE CARE NHS FOUNDATION TRUST","Child & Adolescent Mental Health Services",null,"RP1","DUDLEY AND WALSALL MENTAL HEALTH PARTNERSHIP NHS TRUST","RP1","NORTHAMPTONSHIRE HEALTHCARE NHS FOUNDATION TRUST"]
[null,null,null,null,null,null,null,null,null,null,null,null,null,null,null,null,"Q46","RT2","PENNINE CARE NHS FOUNDATION TRUST","Mental Health Other",null,"RP7","EAST LONDON NHS FOUNDATION TRUST","RP7","LINCOLNSHIRE PARTNERSHIP NHS FOUNDATION TRUST"]
[null,null,null,null,null,null,null,null,null,null,null,null,null,null,null,null,"Q46","RT2","PENNINE CARE NHS FOUNDATION TRUST","Secondary Care Community Services",null,"RPG","GATESHEAD HEALTH NHS FOUNDATION TRUST","RPG","OXLEAS NHS FOUNDATION TRUST"]
[null,null,null,null,null,null,null,null,null,null,null,null,null,null,null,null,"Q46","RT2","PENNINE CARE NHS FOUNDATION TRUST","Specialist Services",null,"RQ3","GREATER MANCHESTER WEST MENTAL HEALTH NHS FOUNDATION TRUST","RQ3","BIRMINGHAM CHILDREN'S HOSPITAL NHS FOUNDATION TRUST"]
[null,null,null,null,null,null,null,null,null,null,null,null,null,null,null,null,"Q47","RXL","BLACKPOOL TEACHING HOSPITALS NHS FOUNDATION TRUST","Child & Adolescent Mental Health Services",null,"RQY","HERTFORDSHIRE COMMUNITY NHS TRUST","RQY","SOUTH WEST LONDON AND ST GEORGE'S MENTAL HEALTH NHS TRUST"]
[null,null,null,null,null,null,null,null,null,null,null,null,null,null,null,null,"Q47","RW5","LANCASHIRE CARE NHS FOUNDATION TRUST","Acute Services",null,"RR7","HERTFORDSHIRE PARTNERSHIP UNIVERSITY NHS FOUNDATION TRUST","RR7","GATESHEAD HEALTH NHS FOUNDATION TRUST"]
[null,null,null,null,null,null,null,null,null,null,null,null,null,null,null,null,"Q47","RW5","LANCASHIRE CARE NHS FOUNDATION TRUST","Child & Adolescent Mental Health Services",null,"RRD","HUMBER NHS FOUNDATION TRUST","RRD","NORTH ESSEX PARTNERSHIP UNIVERSITY NHS FOUNDATION TRUST"]
[null,null,null,null,null,null,null,null,null,null,null,null,null,null,null,null,"Q47","RW5","LANCASHIRE CARE NHS FOUNDATION TRUST","Mental Health Other",null,"RRE","ISLE OF WIGHT NHS TRUST","RRE","SOUTH STAFFORDSHIRE AND SHROPSHIRE HEALTHCARE NHS FOUNDATION TRUST"]
[null,null,null,null,null,null,null,null,null,null,null,null,null,null,null,null,"Q47","RW5","LANCASHIRE CARE NHS FOUNDATION TRUST","Secondary Care Community Services",null,"RRP","KENT AND MEDWAY NHS AND SOCIAL CARE PARTNERSHIP TRUST","RRP","BARNET, ENFIELD AND HARINGEY MENTAL HEALTH NHS TRUST"]
[null,null,null,null,null,null,null,null,null,null,null,null,null,null,null,null,"Q48","RBS","ALDER HEY CHILDREN'S NHS FOUNDATION TRUST","Child & Adolescent Mental Health Services",null,"RRV","LANCASHIRE CARE NHS FOUNDATION TRUST","RRV","UNIVERSITY COLLEGE LONDON HOSPITALS NHS FOUNDATION TRUST"]
[null,null,null,null,null,null,null,null,null,null,null,null,null,null,null,null,"Q48","RW4","MERSEY CARE NHS TRUST","Acute Services",null,"RT1","LEEDS AND YORK PARTNERSHIP NHS FOUNDATION TRUST","RT1","CAMBRIDGESHIRE AND PETERBOROUGH NHS FOUNDATION TRUST"]
[null,null,null,null,null,null,null,null,null,null,null,null,null,null,null,null,"Q48","RW4","MERSEY CARE NHS TRUST","Secondary Care Community Services",null,"RT2","LEEDS COMMUNITY HEALTHCARE NHS TRUST","RT2","PENNINE CARE NHS FOUNDATION TRUST"]
[null,null,null,null,null,null,null,null,null,null,null,null,null,null,null,null,"Q48","RW4","MERSEY CARE NHS TRUST","Secure & Forensic Services",null,"RT5","LEICESTERSHIRE PARTNERSHIP NHS TRUST","RT5","LEICESTERSHIRE PARTNERSHIP NHS TRUST"]
[null,null,null,null,null,null,null,null,null,null,null,null,null,null,null,null,"Q49","RNN","CUMBRIA PARTNERSHIP NHS FOUNDATION TRUST","Acute Services",null,"RTF","LINCOLNSHIRE PARTNERSHIP NHS FOUNDATION TRUST","RTF","NORTHUMBRIA HEALTHCARE NHS FOUNDATION TRUST"]
[null,null,null,null,null,null,null,null,null,null,null,null,null,null,null,null,"Q49","RNN","CUMBRIA PARTNERSHIP NHS FOUNDATION TRUST","Child & Adolescent Mental Health Services",null,"RTQ","MANCHESTER MENTAL HEALTH AND SOCIAL CARE TRUST","RTQ","2GETHER NHS FOUNDATION TRUST"]
[null,null,null,null,null,null,null,null,null,null,null,null,null,null,null,null,"Q49","RNN","CUMBRIA PARTNERSHIP NHS FOUNDATION TRUST","Primary Care",null,"RTV","MERSEY CARE NHS TRUST","RTV","5 BOROUGHS PARTNERSHIP NHS FOUNDATION TRUST"]
[null,null,null,null,null,null,null,null,null,null,null,null,null,null,null,null,"Q49","RNN","CUMBRIA PARTNERSHIP NHS FOUNDATION TRUST","Secondary Care Community Services",null,"RV3","NAVIGO","RV3","CENTRAL AND NORTH WEST LONDON NHS FOUNDATION TRUST"]
[null,null,null,null,null,null,null,null,null,null,null,null,null,null,null,null,"Q49","RR7","GATESHEAD HEALTH NHS FOUNDATION TRUST","Acute Services",null,"RV5","NORFOLK AND SUFFOLK NHS FOUNDATION TRUST","RV5","SOUTH LONDON AND MAUDSLEY NHS FOUNDATION TRUST"]
[null,null,null,null,null,null,null,null,null,null,null,null,null,null,null,null,"Q49","RR7","GATESHEAD HEALTH NHS FOUNDATION TRUST","Secondary Care Community Services",null,"RV9","NORTH EAST LONDON NHS FOUNDATION TRUST","RV9","HUMBER NHS FOUNDATION TRUST"]
[null,null,null,null,null,null,null,null,null,null,null,null,null,null,null,null,"Q49","RR7","GATESHEAD HEALTH NHS FOUNDATION TRUST","Specialist Services",null,"RVN","NORTH ESSEX PARTNERSHIP UNIVERSITY NHS FOUNDATION TRUST","RVN","AVON AND WILTSHIRE MENTAL HEALTH PARTNERSHIP NHS TRUST"]
[null,null,null,null,null,null,null,null,null,null,null,null,null,null,null,null,"Q49","RX4","NORTHUMBERLAND, TYNE AND WEAR NHS FOUNDATION TRUST","Acute Services",null,"RW1","NORTH STAFFORDSHIRE COMBINED HEALTHCARE NHS TRUST","RW1","SOUTHERN HEALTH NHS FOUNDATION TRUST"]
[null,null,null,null,null,null,null,null,null,null,null,null,null,null,null,null,"Q49","RX4","NORTHUMBERLAND, TYNE AND WEAR NHS FOUNDATION TRUST","Child & Adolescent Mental Health Services",null,"RW4","NORTHAMPTONSHIRE HEALTHCARE NHS FOUNDATION TRUST","RW4","MERSEY CARE NHS TRUST"]
[null,null,null,null,null,null,null,null,null,null,null,null,null,null,null,null,"Q49","RX4","NORTHUMBERLAND, TYNE AND WEAR NHS FOUNDATION TRUST","Mental Health Other",null,"RW5","NORTHUMBERLAND, TYNE AND WEAR NHS FOUNDATION TRUST","RW5","LANCASHIRE CARE NHS FOUNDATION TRUST"]
[null,null,null,null,null,null,null,null,null,null,null,null,null,null,null,null,"Q49","RX4","NORTHUMBERLAND, TYNE AND WEAR NHS FOUNDATION TRUST","Secondary Care Community Services",null,"RWK","NORTHUMBRIA HEALTHCARE NHS FOUNDATION TRUST","RWK","EAST LONDON NHS FOUNDATION TRUST"]
[null,null,null,null,null,null,null,null,null,null,null,null,null,null,null,null,"Q49","RX4","NORTHUMBERLAND, TYNE AND WEAR NHS FOUNDATION TRUST","Secure & Forensic Services",null,"RWN","NOTTINGHAMSHIRE HEALTHCARE NHS FOUNDATION TRUST","RWN","SOUTH ESSEX PARTNERSHIP UNIVERSITY NHS FOUNDATION TRUST"]
[null,null,null,null,null,null,null,null,null,null,null,null,null,null,null,null,"Q49","RX4","NORTHUMBERLAND, TYNE AND WEAR NHS FOUNDATION TRUST","Specialist Services",null,"RWR","OXFORD HEALTH NHS FOUNDATION TRUST","RWR","HERTFORDSHIRE PARTNERSHIP UNIVERSITY NHS FOUNDATION TRUST"]
[null,null,null,null,null,null,null,null,null,null,null,null,null,null,null,null,"Q49","RTF","NORTHUMBRIA HEALTHCARE NHS FOUNDATION TRUST","Child & Adolescent Mental Health Services",null,"RWV","OXLEAS NHS FOUNDATION TRUST","RWV","DEVON PARTNERSHIP NHS TRUST"]
[null,null,null,null,null,null,null,null,null,null,null,null,null,null,null,null,"Q49","RTF","NORTHUMBRIA HEALTHCARE NHS FOUNDATION TRUST","Secondary Care Community Services",null,"RWX","PENNINE CARE NHS FOUNDATION TRUST","RWX","BERKSHIRE HEALTHCARE NHS FOUNDATION TRUST"]
[null,null,null,null,null,null,null,null,null,null,null,null,null,null,null,null,"Q49","RE9","SOUTH TYNESIDE NHS FOUNDATION TRUST","Child & Adolescent Mental Health Services",null,"RX2","PLYMOUTH COMMUNITY HEALTHCARE (CIC)","RX2","SUSSEX PARTNERSHIP NHS FOUNDATION TRUST"]
[null,null,null,null,null,null,null,null,null,null,null,null,null,null,null,null,"Q50","RV9","HUMBER NHS FOUNDATION TRUST","Acute Services",null,"RX3","ROTHERHAM DONCASTER AND SOUTH HUMBER NHS FOUNDATION TRUST","RX3","TEES, ESK AND WEAR VALLEYS NHS FOUNDATION TRUST"]
[null,null,null,null,null,null,null,null,null,null,null,null,null,null,null,null,"Q50","RV9","HUMBER NHS FOUNDATION TRUST","Child & Adolescent Mental Health Services",null,"RX4","SHEFFIELD HEALTH & SOCIAL CARE NHS FOUNDATION TRUST","RX4","NORTHUMBERLAND, TYNE AND WEAR NHS FOUNDATION TRUST"]
[null,null,null,null,null,null,null,null,null,null,null,null,null,null,null,null,"Q50","RV9","HUMBER NHS FOUNDATION TRUST","Mental Health Other",null,"RXA","SHROPSHIRE COMMUNITY HEALTH NHS TRUST","RXA","CHESHIRE AND WIRRAL PARTNERSHIP NHS FOUNDATION TRUST"]
[null,null,null,null,null,null,null,null,null,null,null,null,null,null,null,null,"Q50","RV9","HUMBER NHS FOUNDATION TRUST","Primary Care",null,"RXE","SOLENT NHS TRUST","RXE","ROTHERHAM DONCASTER AND SOUTH HUMBER NHS FOUNDATION TRUST"]
[null,null,null,null,null,null,null,null,null,null,null,null,null,null,null,null,"Q50","RV9","HUMBER NHS FOUNDATION TRUST","Secondary Care Community Services",null,"RXG","SOMERSET PARTNERSHIP NHS FOUNDATION TRUST","RXG","SOUTH WEST YORKSHIRE PARTNERSHIP NHS FOUNDATION TRUST"]
[null,null,null,null,null,null,null,null,null,null,null,null,null,null,null,null,"Q50","RV9","HUMBER NHS FOUNDATION TRUST","Secure & Forensic Services",null,"RXL","SOUTH ESSEX PARTNERSHIP UNIVERSITY NHS FOUNDATION TRUST","RXL","BLACKPOOL TEACHING HOSPITALS NHS FOUNDATION TRUST"]
[null,null,null,null,null,null,null,null,null,null,null,null,null,null,null,null,"Q50","RV9","HUMBER NHS FOUNDATION TRUST","Specialist Services",null,"RXM","SOUTH LONDON AND MAUDSLEY NHS FOUNDATION TRUST","RXM","DERBYSHIRE HEALTHCARE NHS FOUNDATION TRUST"]
[null,null,null,null,null,null,null,null,null,null,null,null,null,null,null,null,"Q51","RXE","ROTHERHAM DONCASTER AND SOUTH HUMBER NHS FOUNDATION TRUST","Acute Services",null,"RXT","SOUTH STAFFORDSHIRE AND SHROPSHIRE HEALTHCARE NHS FOUNDATION TRUST","RXT","BIRMINGHAM AND SOLIHULL MENTAL HEALTH NHS FOUNDATION TRUST"]
[null,null,null,null,null,null,null,null,null,null,null,null,null,null,null,null,"Q51","RXE","ROTHERHAM DONCASTER AND SOUTH HUMBER NHS FOUNDATION TRUST","Primary Care",null,"RXV","SOUTH TYNESIDE NHS FOUNDATION TRUST","RXV","GREATER MANCHESTER WEST MENTAL HEALTH NHS FOUNDATION TRUST"]
[null,null,null,null,null,null,null,null,null,null,null,null,null,null,null,null,"Q51","RXE","ROTHERHAM DONCASTER AND SOUTH HUMBER NHS FOUNDATION TRUST","Secondary Care Community Services",null,"RXX","SOUTH WEST LONDON AND ST GEORGE'S MENTAL HEALTH NHS TRUST","RXX","SURREY AND BORDERS PARTNERSHIP NHS FOUNDATION TRUST"]
[null,null,null,null,null,null,null,null,null,null,null,null,null,null,null,null,"Q51","RXE","ROTHERHAM DONCASTER AND SOUTH HUMBER NHS FOUNDATION TRUST","Specialist Services",null,"RXY","SOUTH WEST YORKSHIRE PARTNERSHIP NHS FOUNDATION TRUST","RXY","KENT AND MEDWAY NHS AND SOCIAL CARE PARTNERSHIP TRUST"]
[null,null,null,null,null,null,null,null,null,null,null,null,null,null,null,null,"Q51","TAH","SHEFFIELD HEALTH & SOCIAL CARE NHS FOUNDATION TRUST","Acute Services",null,"RY4","SOUTHERN HEALTH NHS FOUNDATION TRUST","RY4","HERTFORDSHIRE COMMUNITY NHS TRUST"]
[null,null,null,null,null,null,null,null,null,null,null,null,null,null,null,null,"Q51","TAH","SHEFFIELD HEALTH & SOCIAL CARE NHS FOUNDATION TRUST","Mental Health Other",null,"RY6","SURREY AND BORDERS PARTNERSHIP NHS FOUNDATION TRUST","RY6","LEEDS COMMUNITY HEALTHCARE NHS TRUST"]
[null,null,null,null,null,null,null,null,null,null,null,null,null,null,null,null,"Q51","TAH","SHEFFIELD HEALTH & SOCIAL CARE NHS FOUNDATION TRUST","Primary Care",null,"RYG","SUSSEX PARTNERSHIP NHS FOUNDATION TRUST","RYG","COVENTRY AND WARWICKSHIRE PARTNERSHIP NHS TRUST"]
[null,null,null,null,null,null,null,null,null,null,null,null,null,null,null,null,"Q51","TAH","SHEFFIELD HEALTH & SOCIAL CARE NHS FOUNDATION TRUST","Secondary Care Community Services",null,"RYK","TAVISTOCK AND PORTMAN NHS FOUNDATION TRUST","RYK","DUDLEY AND WALSALL MENTAL HEALTH PARTNERSHIP NHS TRUST"]
[null,null,null,null,null,null,null,null,null,null,null,null,null,null,null,null,"Q51","TAH","SHEFFIELD HEALTH & SOCIAL CARE NHS FOUNDATION TRUST","Specialist Services",null,"TAD","TEES, ESK AND WEAR VALLEYS NHS FOUNDATION TRUST","TAD","BRADFORD DISTRICT CARE TRUST"]
[null,null,null,null,null,null,null,null,null,null,null,null,null,null,null,null,"Q52","TAD","BRADFORD DISTRICT CARE TRUST","Acute Services",null,"TAE","UNIVERSITY COLLEGE LONDON HOSPITALS NHS FOUNDATION TRUST","TAE","MANCHESTER MENTAL HEALTH AND SOCIAL CARE TRUST"]
[null,null,null,null,null,null,null,null,null,null,null,null,null,null,null,null,"Q52","TAD","BRADFORD DISTRICT CARE TRUST","Child & Adolescent Mental Health Services",null,"TAF","WEST LONDON MENTAL HEALTH NHS TRUST","TAF","CAMDEN AND ISLINGTON NHS FOUNDATION TRUST"]
[null,null,null,null,null,null,null,null,null,null,null,null,null,null,null,null,"Q52","TAD","BRADFORD DISTRICT CARE TRUST","Mental Health Other",null,"TAH","WORCESTERSHIRE HEALTH AND CARE NHS TRUST","TAH","SHEFFIELD HEALTH & SOCIAL CARE NHS FOUNDATION TRUST"]
[null,null,null,null,null,null,null,null,null,null,null,null,null,null,null,null,"Q52","TAD","BRADFORD DISTRICT CARE TRUST","Primary Care",null,"TAJ","YARBOROUGH CLEE CARE LIMITED","TAJ","BLACK COUNTRY PARTNERSHIP NHS FOUNDATION TRUST"]
[null,null,null,null,null,null,null,null,null,null,null,null,null,null,null,null,"Q52","TAD","BRADFORD DISTRICT CARE TRUST","Secondary Care Community Services"]
[null,null,null,null,null,null,null,null,null,null,null,null,null,null,null,null,"Q52","RGD","LEEDS AND YORK PARTNERSHIP NHS FOUNDATION TRUST","Acute Services"]
[null,null,null,null,null,null,null,null,null,null,null,null,null,null,null,null,"Q52","RGD","LEEDS AND YORK PARTNERSHIP NHS FOUNDATION TRUST","Child & Adolescent Mental Health Services"]
[null,null,null,null,null,null,null,null,null,null,null,null,null,null,null,null,"Q52","RGD","LEEDS AND YORK PARTNERSHIP NHS FOUNDATION TRUST","Mental Health Other"]
[null,null,null,null,null,null,null,null,null,null,null,null,null,null,null,null,"Q52","RGD","LEEDS AND YORK PARTNERSHIP NHS FOUNDATION TRUST","Secondary Care Community Services"]
[null,null,null,null,null,null,null,null,null,null,null,null,null,null,null,null,"Q52","RGD","LEEDS AND YORK PARTNERSHIP NHS FOUNDATION TRUST","Specialist Services"]
[null,null,null,null,null,null,null,null,null,null,null,null,null,null,null,null,"Q52","RY6","LEEDS COMMUNITY HEALTHCARE NHS TRUST","Primary Care"]
[null,null,null,null,null,null,null,null,null,null,null,null,null,null,null,null,"Q52","RXG","SOUTH WEST YORKSHIRE PARTNERSHIP NHS FOUNDATION TRUST","Acute Services"]
[null,null,null,null,null,null,null,null,null,null,null,null,null,null,null,null,"Q52","RXG","SOUTH WEST YORKSHIRE PARTNERSHIP NHS FOUNDATION TRUST","Child & Adolescent Mental Health Services"]
[null,null,null,null,null,null,null,null,null,null,null,null,null,null,null,null,"Q52","RXG","SOUTH WEST YORKSHIRE PARTNERSHIP NHS FOUNDATION TRUST","Mental Health Other"]
[null,null,null,null,null,null,null,null,null,null,null,null,null,null,null,null,"Q52","RXG","SOUTH WEST YORKSHIRE PARTNERSHIP NHS FOUNDATION TRUST","Primary Care"]
[null,null,null,null,null,null,null,null,null,null,null,null,null,null,null,null,"Q52","RXG","SOUTH WEST YORKSHIRE PARTNERSHIP NHS FOUNDATION TRUST","Secondary Care Community Services"]
[null,null,null,null,null,null,null,null,null,null,null,null,null,null,null,null,"Q52","RXG","SOUTH WEST YORKSHIRE PARTNERSHIP NHS FOUNDATION TRUST","Secure & Forensic Services"]
[null,null,null,null,null,null,null,null,null,null,null,null,null,null,null,null,"Q52","RXG","SOUTH WEST YORKSHIRE PARTNERSHIP NHS FOUNDATION TRUST","Specialist Services"]
[null,null,null,null,null,null,null,null,null,null,null,null,null,null,null,null,"Q53","RYG","COVENTRY AND WARWICKSHIRE PARTNERSHIP NHS TRUST","Acute Services"]
[null,null,null,null,null,null,null,null,null,null,null,null,null,null,null,null,"Q53","RYG","COVENTRY AND WARWICKSHIRE PARTNERSHIP NHS TRUST","Child & Adolescent Mental Health Services"]
[null,null,null,null,null,null,null,null,null,null,null,null,null,null,null,null,"Q53","RYG","COVENTRY AND WARWICKSHIRE PARTNERSHIP NHS TRUST","Mental Health Other"]
[null,null,null,null,null,null,null,null,null,null,null,null,null,null,null,null,"Q53","RYG","COVENTRY AND WARWICKSHIRE PARTNERSHIP NHS TRUST","Primary Care"]
[null,null,null,null,null,null,null,null,null,null,null,null,null,null,null,null,"Q53","RYG","COVENTRY AND WARWICKSHIRE PARTNERSHIP NHS TRUST","Secondary Care Community Services"]
[null,null,null,null,null,null,null,null,null,null,null,null,null,null,null,null,"Q53","RYG","COVENTRY AND WARWICKSHIRE PARTNERSHIP NHS TRUST","Specialist Services"]
[null,null,null,null,null,null,null,null,null,null,null,null,null,null,null,null,"Q53","R1A","WORCESTERSHIRE HEALTH AND CARE NHS TRUST","Child & Adolescent Mental Health Services"]
[null,null,null,null,null,null,null,null,null,null,null,null,null,null,null,null,"Q54","RXT","BIRMINGHAM AND SOLIHULL MENTAL HEALTH NHS FOUNDATION TRUST","Acute Services"]
[null,null,null,null,null,null,null,null,null,null,null,null,null,null,null,null,"Q54","RXT","BIRMINGHAM AND SOLIHULL MENTAL HEALTH NHS FOUNDATION TRUST","Mental Health Other"]
[null,null,null,null,null,null,null,null,null,null,null,null,null,null,null,null,"Q54","RXT","BIRMINGHAM AND SOLIHULL MENTAL HEALTH NHS FOUNDATION TRUST","Primary Care"]
[null,null,null,null,null,null,null,null,null,null,null,null,null,null,null,null,"Q54","RXT","BIRMINGHAM AND SOLIHULL MENTAL HEALTH NHS FOUNDATION TRUST","Secondary Care Community Services"]
[null,null,null,null,null,null,null,null,null,null,null,null,null,null,null,null,"Q54","RXT","BIRMINGHAM AND SOLIHULL MENTAL HEALTH NHS FOUNDATION TRUST","Secure & Forensic Services"]
[null,null,null,null,null,null,null,null,null,null,null,null,null,null,null,null,"Q54","RXT","BIRMINGHAM AND SOLIHULL MENTAL HEALTH NHS FOUNDATION TRUST","Specialist Services"]
[null,null,null,null,null,null,null,null,null,null,null,null,null,null,null,null,"Q54","RQ3","BIRMINGHAM CHILDREN'S HOSPITAL NHS FOUNDATION TRUST","Child & Adolescent Mental Health Services"]
[null,null,null,null,null,null,null,null,null,null,null,null,null,null,null,null,"Q54","TAJ","BLACK COUNTRY PARTNERSHIP NHS FOUNDATION TRUST","Mental Health Other"]
[null,null,null,null,null,null,null,null,null,null,null,null,null,null,null,null,"Q54","RYK","DUDLEY AND WALSALL MENTAL HEALTH PARTNERSHIP NHS TRUST","Secondary Care Community Services"]
[null,null,null,null,null,null,null,null,null,null,null,null,null,null,null,null,"Q55","RXM","DERBYSHIRE HEALTHCARE NHS FOUNDATION TRUST","Acute Services"]
[null,null,null,null,null,null,null,null,null,null,null,null,null,null,null,null,"Q55","RXM","DERBYSHIRE HEALTHCARE NHS FOUNDATION TRUST","Mental Health Other"]
[null,null,null,null,null,null,null,null,null,null,null,null,null,null,null,null,"Q55","RXM","DERBYSHIRE HEALTHCARE NHS FOUNDATION TRUST","Secondary Care Community Services"]
[null,null,null,null,null,null,null,null,null,null,null,null,null,null,null,null,"Q55","RXM","DERBYSHIRE HEALTHCARE NHS FOUNDATION TRUST","Secure & Forensic Services"]
[null,null,null,null,null,null,null,null,null,null,null,null,null,null,null,null,"Q55","RXM","DERBYSHIRE HEALTHCARE NHS FOUNDATION TRUST","Specialist Services"]
[null,null,null,null,null,null,null,null,null,null,null,null,null,null,null,null,"Q55","RHA","NOTTINGHAMSHIRE HEALTHCARE NHS FOUNDATION TRUST","Acute Services"]
[null,null,null,null,null,null,null,null,null,null,null,null,null,null,null,null,"Q55","RHA","NOTTINGHAMSHIRE HEALTHCARE NHS FOUNDATION TRUST","Child & Adolescent Mental Health Services"]
[null,null,null,null,null,null,null,null,null,null,null,null,null,null,null,null,"Q55","RHA","NOTTINGHAMSHIRE HEALTHCARE NHS FOUNDATION TRUST","Primary Care"]
[null,null,null,null,null,null,null,null,null,null,null,null,null,null,null,null,"Q55","RHA","NOTTINGHAMSHIRE HEALTHCARE NHS FOUNDATION TRUST","Secondary Care Community Services"]
[null,null,null,null,null,null,null,null,null,null,null,null,null,null,null,null,"Q55","RHA","NOTTINGHAMSHIRE HEALTHCARE NHS FOUNDATION TRUST","Secure & Forensic Services"]
[null,null,null,null,null,null,null,null,null,null,null,null,null,null,null,null,"Q55","RHA","NOTTINGHAMSHIRE HEALTHCARE NHS FOUNDATION TRUST","Specialist Services"]
[null,null,null,null,null,null,null,null,null,null,null,null,null,null,null,null,"Q56","RT1","CAMBRIDGESHIRE AND PETERBOROUGH NHS FOUNDATION TRUST","Acute Services"]
[null,null,null,null,null,null,null,null,null,null,null,null,null,null,null,null,"Q56","RT1","CAMBRIDGESHIRE AND PETERBOROUGH NHS FOUNDATION TRUST","Child & Adolescent Mental Health Services"]
[null,null,null,null,null,null,null,null,null,null,null,null,null,null,null,null,"Q56","RT1","CAMBRIDGESHIRE AND PETERBOROUGH NHS FOUNDATION TRUST","Mental Health Other"]
[null,null,null,null,null,null,null,null,null,null,null,null,null,null,null,null,"Q56","RT1","CAMBRIDGESHIRE AND PETERBOROUGH NHS FOUNDATION TRUST","Primary Care"]
[null,null,null,null,null,null,null,null,null,null,null,null,null,null,null,null,"Q56","RT1","CAMBRIDGESHIRE AND PETERBOROUGH NHS FOUNDATION TRUST","Secondary Care Community Services"]
[null,null,null,null,null,null,null,null,null,null,null,null,null,null,null,null,"Q56","RT1","CAMBRIDGESHIRE AND PETERBOROUGH NHS FOUNDATION TRUST","Secure & Forensic Services"]
[null,null,null,null,null,null,null,null,null,null,null,null,null,null,null,null,"Q56","RT1","CAMBRIDGESHIRE AND PETERBOROUGH NHS FOUNDATION TRUST","Specialist Services"]
[null,null,null,null,null,null,null,null,null,null,null,null,null,null,null,null,"Q56","RMY","NORFOLK AND SUFFOLK NHS FOUNDATION TRUST","Acute Services"]
[null,null,null,null,null,null,null,null,null,null,null,null,null,null,null,null,"Q56","RMY","NORFOLK AND SUFFOLK NHS FOUNDATION TRUST","Secondary Care Community Services"]
[null,null,null,null,null,null,null,null,null,null,null,null,null,null,null,null,"Q57","RRD","NORTH ESSEX PARTNERSHIP UNIVERSITY NHS FOUNDATION TRUST","Mental Health Other"]
[null,null,null,null,null,null,null,null,null,null,null,null,null,null,null,null,"Q57","RWN","SOUTH ESSEX PARTNERSHIP UNIVERSITY NHS FOUNDATION TRUST","Acute Services"]
[null,null,null,null,null,null,null,null,null,null,null,null,null,null,null,null,"Q57","RWN","SOUTH ESSEX PARTNERSHIP UNIVERSITY NHS FOUNDATION TRUST","Child & Adolescent Mental Health Services"]
[null,null,null,null,null,null,null,null,null,null,null,null,null,null,null,null,"Q57","RWN","SOUTH ESSEX PARTNERSHIP UNIVERSITY NHS FOUNDATION TRUST","Mental Health Other"]
[null,null,null,null,null,null,null,null,null,null,null,null,null,null,null,null,"Q57","RWN","SOUTH ESSEX PARTNERSHIP UNIVERSITY NHS FOUNDATION TRUST","Primary Care"]
[null,null,null,null,null,null,null,null,null,null,null,null,null,null,null,null,"Q57","RWN","SOUTH ESSEX PARTNERSHIP UNIVERSITY NHS FOUNDATION TRUST","Secondary Care Community Services"]
[null,null,null,null,null,null,null,null,null,null,null,null,null,null,null,null,"Q57","RWN","SOUTH ESSEX PARTNERSHIP UNIVERSITY NHS FOUNDATION TRUST","Specialist Services"]
[null,null,null,null,null,null,null,null,null,null,null,null,null,null,null,null,"Q58","RY4","HERTFORDSHIRE COMMUNITY NHS TRUST","Child & Adolescent Mental Health Services"]
[null,null,null,null,null,null,null,null,null,null,null,null,null,null,null,null,"Q58","RWR","HERTFORDSHIRE PARTNERSHIP UNIVERSITY NHS FOUNDATION TRUST","Acute Services"]
[null,null,null,null,null,null,null,null,null,null,null,null,null,null,null,null,"Q58","RWR","HERTFORDSHIRE PARTNERSHIP UNIVERSITY NHS FOUNDATION TRUST","Child & Adolescent Mental Health Services"]
[null,null,null,null,null,null,null,null,null,null,null,null,null,null,null,null,"Q58","RWR","HERTFORDSHIRE PARTNERSHIP UNIVERSITY NHS FOUNDATION TRUST","Primary Care"]
[null,null,null,null,null,null,null,null,null,null,null,null,null,null,null,null,"Q58","RWR","HERTFORDSHIRE PARTNERSHIP UNIVERSITY NHS FOUNDATION TRUST","Secondary Care Community Services"]
[null,null,null,null,null,null,null,null,null,null,null,null,null,null,null,null,"Q58","RWR","HERTFORDSHIRE PARTNERSHIP UNIVERSITY NHS FOUNDATION TRUST","Secure & Forensic Services"]
[null,null,null,null,null,null,null,null,null,null,null,null,null,null,null,null,"Q58","RWR","HERTFORDSHIRE PARTNERSHIP UNIVERSITY NHS FOUNDATION TRUST","Specialist Services"]
[null,null,null,null,null,null,null,null,null,null,null,null,null,null,null,null,"Q58","RP1","NORTHAMPTONSHIRE HEALTHCARE NHS FOUNDATION TRUST","Acute Services"]
[null,null,null,null,null,null,null,null,null,null,null,null,null,null,null,null,"Q58","RP1","NORTHAMPTONSHIRE HEALTHCARE NHS FOUNDATION TRUST","Child & Adolescent Mental Health Services"]
[null,null,null,null,null,null,null,null,null,null,null,null,null,null,null,null,"Q58","RP1","NORTHAMPTONSHIRE HEALTHCARE NHS FOUNDATION TRUST","Mental Health Other"]
[null,null,null,null,null,null,null,null,null,null,null,null,null,null,null,null,"Q58","RP1","NORTHAMPTONSHIRE HEALTHCARE NHS FOUNDATION TRUST","Secondary Care Community Services"]
[null,null,null,null,null,null,null,null,null,null,null,null,null,null,null,null,"Q58","RP1","NORTHAMPTONSHIRE HEALTHCARE NHS FOUNDATION TRUST","Specialist Services"]
[null,null,null,null,null,null,null,null,null,null,null,null,null,null,null,null,"Q59","RT5","LEICESTERSHIRE PARTNERSHIP NHS TRUST","Acute Services"]
[null,null,null,null,null,null,null,null,null,null,null,null,null,null,null,null,"Q59","RT5","LEICESTERSHIRE PARTNERSHIP NHS TRUST","Child & Adolescent Mental Health Services"]
[null,null,null,null,null,null,null,null,null,null,null,null,null,null,null,null,"Q59","RT5","LEICESTERSHIRE PARTNERSHIP NHS TRUST","Mental Health Other"]
[null,null,null,null,null,null,null,null,null,null,null,null,null,null,null,null,"Q59","RT5","LEICESTERSHIRE PARTNERSHIP NHS TRUST","Secondary Care Community Services"]
[null,null,null,null,null,null,null,null,null,null,null,null,null,null,null,null,"Q59","RT5","LEICESTERSHIRE PARTNERSHIP NHS TRUST","Specialist Services"]
[null,null,null,null,null,null,null,null,null,null,null,null,null,null,null,null,"Q59","RP7","LINCOLNSHIRE PARTNERSHIP NHS FOUNDATION TRUST","Acute Services"]
[null,null,null,null,null,null,null,null,null,null,null,null,null,null,null,null,"Q59","RP7","LINCOLNSHIRE PARTNERSHIP NHS FOUNDATION TRUST","Child & Adolescent Mental Health Services"]
[null,null,null,null,null,null,null,null,null,null,null,null,null,null,null,null,"Q59","RP7","LINCOLNSHIRE PARTNERSHIP NHS FOUNDATION TRUST","Mental Health Other"]
[null,null,null,null,null,null,null,null,null,null,null,null,null,null,null,null,"Q59","RP7","LINCOLNSHIRE PARTNERSHIP NHS FOUNDATION TRUST","Primary Care"]
[null,null,null,null,null,null,null,null,null,null,null,null,null,null,null,null,"Q59","RP7","LINCOLNSHIRE PARTNERSHIP NHS FOUNDATION TRUST","Secondary Care Community Services"]
[null,null,null,null,null,null,null,null,null,null,null,null,null,null,null,null,"Q59","RP7","LINCOLNSHIRE PARTNERSHIP NHS FOUNDATION TRUST","Specialist Services"]
[null,null,null,null,null,null,null,null,null,null,null,null,null,null,null,null,"Q60","RLY","NORTH STAFFORDSHIRE COMBINED HEALTHCARE NHS TRUST","Acute Services"]
[null,null,null,null,null,null,null,null,null,null,null,null,null,null,null,null,"Q60","RLY","NORTH STAFFORDSHIRE COMBINED HEALTHCARE NHS TRUST","Secondary Care Community Services"]
[null,null,null,null,null,null,null,null,null,null,null,null,null,null,null,null,"Q60","R1D","SHROPSHIRE COMMUNITY HEALTH NHS TRUST","Child & Adolescent Mental Health Services"]
[null,null,null,null,null,null,null,null,null,null,null,null,null,null,null,null,"Q60","RRE","SOUTH STAFFORDSHIRE AND SHROPSHIRE HEALTHCARE NHS FOUNDATION TRUST","Acute Services"]
[null,null,null,null,null,null,null,null,null,null,null,null,null,null,null,null,"Q60","RRE","SOUTH STAFFORDSHIRE AND SHROPSHIRE HEALTHCARE NHS FOUNDATION TRUST","Child & Adolescent Mental Health Services"]
[null,null,null,null,null,null,null,null,null,null,null,null,null,null,null,null,"Q60","RRE","SOUTH STAFFORDSHIRE AND SHROPSHIRE HEALTHCARE NHS FOUNDATION TRUST","Mental Health Other"]
[null,null,null,null,null,null,null,null,null,null,null,null,null,null,null,null,"Q60","RRE","SOUTH STAFFORDSHIRE AND SHROPSHIRE HEALTHCARE NHS FOUNDATION TRUST","Primary Care"]
[null,null,null,null,null,null,null,null,null,null,null,null,null,null,null,null,"Q60","RRE","SOUTH STAFFORDSHIRE AND SHROPSHIRE HEALTHCARE NHS FOUNDATION TRUST","Secondary Care Community Services"]
[null,null,null,null,null,null,null,null,null,null,null,null,null,null,null,null,"Q64","RTQ","2GETHER NHS FOUNDATION TRUST","Acute Services"]
[null,null,null,null,null,null,null,null,null,null,null,null,null,null,null,null,"Q64","RTQ","2GETHER NHS FOUNDATION TRUST","Child & Adolescent Mental Health Services"]
[null,null,null,null,null,null,null,null,null,null,null,null,null,null,null,null,"Q64","RTQ","2GETHER NHS FOUNDATION TRUST","Mental Health Other"]
[null,null,null,null,null,null,null,null,null,null,null,null,null,null,null,null,"Q64","RTQ","2GETHER NHS FOUNDATION TRUST","Primary Care"]
[null,null,null,null,null,null,null,null,null,null,null,null,null,null,null,null,"Q64","RTQ","2GETHER NHS FOUNDATION TRUST","Secondary Care Community Services"]
[null,null,null,null,null,null,null,null,null,null,null,null,null,null,null,null,"Q64","RTQ","2GETHER NHS FOUNDATION TRUST","Specialist Services"]
[null,null,null,null,null,null,null,null,null,null,null,null,null,null,null,null,"Q64","RVN","AVON AND WILTSHIRE MENTAL HEALTH PARTNERSHIP NHS TRUST","Acute Services"]
[null,null,null,null,null,null,null,null,null,null,null,null,null,null,null,null,"Q64","RVN","AVON AND WILTSHIRE MENTAL HEALTH PARTNERSHIP NHS TRUST","Mental Health Other"]
[null,null,null,null,null,null,null,null,null,null,null,null,null,null,null,null,"Q64","RVN","AVON AND WILTSHIRE MENTAL HEALTH PARTNERSHIP NHS TRUST","Primary Care"]
[null,null,null,null,null,null,null,null,null,null,null,null,null,null,null,null,"Q64","RVN","AVON AND WILTSHIRE MENTAL HEALTH PARTNERSHIP NHS TRUST","Secondary Care Community Services"]
[null,null,null,null,null,null,null,null,null,null,null,null,null,null,null,null,"Q64","RVN","AVON AND WILTSHIRE MENTAL HEALTH PARTNERSHIP NHS TRUST","Secure & Forensic Services"]
[null,null,null,null,null,null,null,null,null,null,null,null,null,null,null,null,"Q64","RVN","AVON AND WILTSHIRE MENTAL HEALTH PARTNERSHIP NHS TRUST","Specialist Services"]
[null,null,null,null,null,null,null,null,null,null,null,null,null,null,null,null,"Q65","RH5","SOMERSET PARTNERSHIP NHS FOUNDATION TRUST","Acute Services"]
[null,null,null,null,null,null,null,null,null,null,null,null,null,null,null,null,"Q65","RH5","SOMERSET PARTNERSHIP NHS FOUNDATION TRUST","Child & Adolescent Mental Health Services"]
[null,null,null,null,null,null,null,null,null,null,null,null,null,null,null,null,"Q65","RH5","SOMERSET PARTNERSHIP NHS FOUNDATION TRUST","Mental Health Other"]
[null,null,null,null,null,null,null,null,null,null,null,null,null,null,null,null,"Q65","RH5","SOMERSET PARTNERSHIP NHS FOUNDATION TRUST","Specialist Services"]
[null,null,null,null,null,null,null,null,null,null,null,null,null,null,null,null,"Q66","RJ8","CORNWALL PARTNERSHIP NHS FOUNDATION TRUST","Acute Services"]
[null,null,null,null,null,null,null,null,null,null,null,null,null,null,null,null,"Q66","RJ8","CORNWALL PARTNERSHIP NHS FOUNDATION TRUST","Child & Adolescent Mental Health Services"]
[null,null,null,null,null,null,null,null,null,null,null,null,null,null,null,null,"Q66","RJ8","CORNWALL PARTNERSHIP NHS FOUNDATION TRUST","Secondary Care Community Services"]
[null,null,null,null,null,null,null,null,null,null,null,null,null,null,null,null,"Q66","RJ8","CORNWALL PARTNERSHIP NHS FOUNDATION TRUST","Specialist Services"]
[null,null,null,null,null,null,null,null,null,null,null,null,null,null,null,null,"Q66","RWV","DEVON PARTNERSHIP NHS TRUST","Acute Services"]
[null,null,null,null,null,null,null,null,null,null,null,null,null,null,null,null,"Q66","RWV","DEVON PARTNERSHIP NHS TRUST","Primary Care"]
[null,null,null,null,null,null,null,null,null,null,null,null,null,null,null,null,"Q66","RWV","DEVON PARTNERSHIP NHS TRUST","Secondary Care Community Services"]
[null,null,null,null,null,null,null,null,null,null,null,null,null,null,null,null,"Q66","RWV","DEVON PARTNERSHIP NHS TRUST","Secure & Forensic Services"]
[null,null,null,null,null,null,null,null,null,null,null,null,null,null,null,null,"Q66","RWV","DEVON PARTNERSHIP NHS TRUST","Specialist Services"]
[null,null,null,null,null,null,null,null,null,null,null,null,null,null,null,null,"Q67","RXY","KENT AND MEDWAY NHS AND SOCIAL CARE PARTNERSHIP TRUST","Acute Services"]
[null,null,null,null,null,null,null,null,null,null,null,null,null,null,null,null,"Q67","RXY","KENT AND MEDWAY NHS AND SOCIAL CARE PARTNERSHIP TRUST","Secondary Care Community Services"]
[null,null,null,null,null,null,null,null,null,null,null,null,null,null,null,null,"Q67","RXY","KENT AND MEDWAY NHS AND SOCIAL CARE PARTNERSHIP TRUST","Specialist Services"]
[null,null,null,null,null,null,null,null,null,null,null,null,null,null,null,null,"Q68","RXX","SURREY AND BORDERS PARTNERSHIP NHS FOUNDATION TRUST","Acute Services"]
[null,null,null,null,null,null,null,null,null,null,null,null,null,null,null,null,"Q68","RXX","SURREY AND BORDERS PARTNERSHIP NHS FOUNDATION TRUST","Child & Adolescent Mental Health Services"]
[null,null,null,null,null,null,null,null,null,null,null,null,null,null,null,null,"Q68","RXX","SURREY AND BORDERS PARTNERSHIP NHS FOUNDATION TRUST","Mental Health Other"]
[null,null,null,null,null,null,null,null,null,null,null,null,null,null,null,null,"Q68","RXX","SURREY AND BORDERS PARTNERSHIP NHS FOUNDATION TRUST","Secondary Care Community Services"]
[null,null,null,null,null,null,null,null,null,null,null,null,null,null,null,null,"Q68","RXX","SURREY AND BORDERS PARTNERSHIP NHS FOUNDATION TRUST","Specialist Services"]
[null,null,null,null,null,null,null,null,null,null,null,null,null,null,null,null,"Q68","RX2","SUSSEX PARTNERSHIP NHS FOUNDATION TRUST","Acute Services"]
[null,null,null,null,null,null,null,null,null,null,null,null,null,null,null,null,"Q68","RX2","SUSSEX PARTNERSHIP NHS FOUNDATION TRUST","Child & Adolescent Mental Health Services"]
[null,null,null,null,null,null,null,null,null,null,null,null,null,null,null,null,"Q68","RX2","SUSSEX PARTNERSHIP NHS FOUNDATION TRUST","Primary Care"]
[null,null,null,null,null,null,null,null,null,null,null,null,null,null,null,null,"Q68","RX2","SUSSEX PARTNERSHIP NHS FOUNDATION TRUST","Secondary Care Community Services"]
[null,null,null,null,null,null,null,null,null,null,null,null,null,null,null,null,"Q68","RX2","SUSSEX PARTNERSHIP NHS FOUNDATION TRUST","Secure & Forensic Services"]
[null,null,null,null,null,null,null,null,null,null,null,null,null,null,null,null,"Q68","RX2","SUSSEX PARTNERSHIP NHS FOUNDATION TRUST","Specialist Services"]
[null,null,null,null,null,null,null,null,null,null,null,null,null,null,null,null,"Q69","RWX","BERKSHIRE HEALTHCARE NHS FOUNDATION TRUST","Acute Services"]
[null,null,null,null,null,null,null,null,null,null,null,null,null,null,null,null,"Q69","RWX","BERKSHIRE HEALTHCARE NHS FOUNDATION TRUST","Child & Adolescent Mental Health Services"]
[null,null,null,null,null,null,null,null,null,null,null,null,null,null,null,null,"Q69","RWX","BERKSHIRE HEALTHCARE NHS FOUNDATION TRUST","Primary Care"]
[null,null,null,null,null,null,null,null,null,null,null,null,null,null,null,null,"Q69","RWX","BERKSHIRE HEALTHCARE NHS FOUNDATION TRUST","Secondary Care Community Services"]
[null,null,null,null,null,null,null,null,null,null,null,null,null,null,null,null,"Q69","RNU","OXFORD HEALTH NHS FOUNDATION TRUST","Acute Services"]
[null,null,null,null,null,null,null,null,null,null,null,null,null,null,null,null,"Q69","RNU","OXFORD HEALTH NHS FOUNDATION TRUST","Child & Adolescent Mental Health Services"]
[null,null,null,null,null,null,null,null,null,null,null,null,null,null,null,null,"Q69","RNU","OXFORD HEALTH NHS FOUNDATION TRUST","Secondary Care Community Services"]
[null,null,null,null,null,null,null,null,null,null,null,null,null,null,null,null,"Q69","RNU","OXFORD HEALTH NHS FOUNDATION TRUST","Specialist Services"]
[null,null,null,null,null,null,null,null,null,null,null,null,null,null,null,null,"Q70","RDY","DORSET HEALTHCARE UNIVERSITY NHS FOUNDATION TRUST","Acute Services"]
[null,null,null,null,null,null,null,null,null,null,null,null,null,null,null,null,"Q70","RDY","DORSET HEALTHCARE UNIVERSITY NHS FOUNDATION TRUST","Child & Adolescent Mental Health Services"]
[null,null,null,null,null,null,null,null,null,null,null,null,null,null,null,null,"Q70","RDY","DORSET HEALTHCARE UNIVERSITY NHS FOUNDATION TRUST","Mental Health Other"]
[null,null,null,null,null,null,null,null,null,null,null,null,null,null,null,null,"Q70","RDY","DORSET HEALTHCARE UNIVERSITY NHS FOUNDATION TRUST","Primary Care"]
[null,null,null,null,null,null,null,null,null,null,null,null,null,null,null,null,"Q70","RDY","DORSET HEALTHCARE UNIVERSITY NHS FOUNDATION TRUST","Secondary Care Community Services"]
[null,null,null,null,null,null,null,null,null,null,null,null,null,null,null,null,"Q70","RDY","DORSET HEALTHCARE UNIVERSITY NHS FOUNDATION TRUST","Specialist Services"]
[null,null,null,null,null,null,null,null,null,null,null,null,null,null,null,null,"Q70","R1F","ISLE OF WIGHT NHS TRUST","Acute Services"]
[null,null,null,null,null,null,null,null,null,null,null,null,null,null,null,null,"Q70","R1F","ISLE OF WIGHT NHS TRUST","Secondary Care Community Services"]
[null,null,null,null,null,null,null,null,null,null,null,null,null,null,null,null,"Q70","R1C","SOLENT NHS TRUST","Acute Services"]
[null,null,null,null,null,null,null,null,null,null,null,null,null,null,null,null,"Q70","R1C","SOLENT NHS TRUST","Child & Adolescent Mental Health Services"]
[null,null,null,null,null,null,null,null,null,null,null,null,null,null,null,null,"Q70","R1C","SOLENT NHS TRUST","Mental Health Other"]
[null,null,null,null,null,null,null,null,null,null,null,null,null,null,null,null,"Q70","R1C","SOLENT NHS TRUST","Secondary Care Community Services"]
[null,null,null,null,null,null,null,null,null,null,null,null,null,null,null,null,"Q70","RW1","SOUTHERN HEALTH NHS FOUNDATION TRUST","Acute Services"]
[null,null,null,null,null,null,null,null,null,null,null,null,null,null,null,null,"Q70","RW1","SOUTHERN HEALTH NHS FOUNDATION TRUST","Child & Adolescent Mental Health Services"]
[null,null,null,null,null,null,null,null,null,null,null,null,null,null,null,null,"Q70","RW1","SOUTHERN HEALTH NHS FOUNDATION TRUST","Mental Health Other"]
[null,null,null,null,null,null,null,null,null,null,null,null,null,null,null,null,"Q70","RW1","SOUTHERN HEALTH NHS FOUNDATION TRUST","Primary Care"]
[null,null,null,null,null,null,null,null,null,null,null,null,null,null,null,null,"Q70","RW1","SOUTHERN HEALTH NHS FOUNDATION TRUST","Secondary Care Community Services"]
[null,null,null,null,null,null,null,null,null,null,null,null,null,null,null,null,"Q70","RW1","SOUTHERN HEALTH NHS FOUNDATION TRUST","Secure & Forensic Services"]
[null,null,null,null,null,null,null,null,null,null,null,null,null,null,null,null,"Q71","RRP","BARNET, ENFIELD AND HARINGEY MENTAL HEALTH NHS TRUST","Acute Services"]
[null,null,null,null,null,null,null,null,null,null,null,null,null,null,null,null,"Q71","RRP","BARNET, ENFIELD AND HARINGEY MENTAL HEALTH NHS TRUST","Child & Adolescent Mental Health Services"]
[null,null,null,null,null,null,null,null,null,null,null,null,null,null,null,null,"Q71","RRP","BARNET, ENFIELD AND HARINGEY MENTAL HEALTH NHS TRUST","Mental Health Other"]
[null,null,null,null,null,null,null,null,null,null,null,null,null,null,null,null,"Q71","RRP","BARNET, ENFIELD AND HARINGEY MENTAL HEALTH NHS TRUST","Secondary Care Community Services"]
[null,null,null,null,null,null,null,null,null,null,null,null,null,null,null,null,"Q71","RRP","BARNET, ENFIELD AND HARINGEY MENTAL HEALTH NHS TRUST","Secure & Forensic Services"]
[null,null,null,null,null,null,null,null,null,null,null,null,null,null,null,null,"Q71","TAF","CAMDEN AND ISLINGTON NHS FOUNDATION TRUST","Mental Health Other"]
[null,null,null,null,null,null,null,null,null,null,null,null,null,null,null,null,"Q71","RV3","CENTRAL AND NORTH WEST LONDON NHS FOUNDATION TRUST","Acute Services"]
[null,null,null,null,null,null,null,null,null,null,null,null,null,null,null,null,"Q71","RV3","CENTRAL AND NORTH WEST LONDON NHS FOUNDATION TRUST","Child & Adolescent Mental Health Services"]
[null,null,null,null,null,null,null,null,null,null,null,null,null,null,null,null,"Q71","RV3","CENTRAL AND NORTH WEST LONDON NHS FOUNDATION TRUST","Secondary Care Community Services"]
[null,null,null,null,null,null,null,null,null,null,null,null,null,null,null,null,"Q71","RWK","EAST LONDON NHS FOUNDATION TRUST","Acute Services"]
[null,null,null,null,null,null,null,null,null,null,null,null,null,null,null,null,"Q71","RAT","NORTH EAST LONDON NHS FOUNDATION TRUST","Acute Services"]
[null,null,null,null,null,null,null,null,null,null,null,null,null,null,null,null,"Q71","RAT","NORTH EAST LONDON NHS FOUNDATION TRUST","Child & Adolescent Mental Health Services"]
[null,null,null,null,null,null,null,null,null,null,null,null,null,null,null,null,"Q71","RAT","NORTH EAST LONDON NHS FOUNDATION TRUST","Mental Health Other"]
[null,null,null,null,null,null,null,null,null,null,null,null,null,null,null,null,"Q71","RAT","NORTH EAST LONDON NHS FOUNDATION TRUST","Primary Care"]
[null,null,null,null,null,null,null,null,null,null,null,null,null,null,null,null,"Q71","RAT","NORTH EAST LONDON NHS FOUNDATION TRUST","Secondary Care Community Services"]
[null,null,null,null,null,null,null,null,null,null,null,null,null,null,null,null,"Q71","RAT","NORTH EAST LONDON NHS FOUNDATION TRUST","Specialist Services"]
[null,null,null,null,null,null,null,null,null,null,null,null,null,null,null,null,"Q71","RPG","OXLEAS NHS FOUNDATION TRUST","Acute Services"]
[null,null,null,null,null,null,null,null,null,null,null,null,null,null,null,null,"Q71","RPG","OXLEAS NHS FOUNDATION TRUST","Child & Adolescent Mental Health Services"]
[null,null,null,null,null,null,null,null,null,null,null,null,null,null,null,null,"Q71","RPG","OXLEAS NHS FOUNDATION TRUST","Mental Health Other"]
[null,null,null,null,null,null,null,null,null,null,null,null,null,null,null,null,"Q71","RPG","OXLEAS NHS FOUNDATION TRUST","Primary Care"]
[null,null,null,null,null,null,null,null,null,null,null,null,null,null,null,null,"Q71","RPG","OXLEAS NHS FOUNDATION TRUST","Secondary Care Community Services"]
[null,null,null,null,null,null,null,null,null,null,null,null,null,null,null,null,"Q71","RPG","OXLEAS NHS FOUNDATION TRUST","Secure & Forensic Services"]
[null,null,null,null,null,null,null,null,null,null,null,null,null,null,null,null,"Q71","RV5","SOUTH LONDON AND MAUDSLEY NHS FOUNDATION TRUST","Acute Services"]
[null,null,null,null,null,null,null,null,null,null,null,null,null,null,null,null,"Q71","RV5","SOUTH LONDON AND MAUDSLEY NHS FOUNDATION TRUST","Child & Adolescent Mental Health Services"]
[null,null,null,null,null,null,null,null,null,null,null,null,null,null,null,null,"Q71","RV5","SOUTH LONDON AND MAUDSLEY NHS FOUNDATION TRUST","Mental Health Other"]
[null,null,null,null,null,null,null,null,null,null,null,null,null,null,null,null,"Q71","RV5","SOUTH LONDON AND MAUDSLEY NHS FOUNDATION TRUST","Primary Care"]
[null,null,null,null,null,null,null,null,null,null,null,null,null,null,null,null,"Q71","RV5","SOUTH LONDON AND MAUDSLEY NHS FOUNDATION TRUST","Secondary Care Community Services"]
[null,null,null,null,null,null,null,null,null,null,null,null,null,null,null,null,"Q71","RV5","SOUTH LONDON AND MAUDSLEY NHS FOUNDATION TRUST","Secure & Forensic Services"]
[null,null,null,null,null,null,null,null,null,null,null,null,null,null,null,null,"Q71","RV5","SOUTH LONDON AND MAUDSLEY NHS FOUNDATION TRUST","Specialist Services"]
[null,null,null,null,null,null,null,null,null,null,null,null,null,null,null,null,"Q71","RQY","SOUTH WEST LONDON AND ST GEORGE'S MENTAL HEALTH NHS TRUST","Acute Services"]
[null,null,null,null,null,null,null,null,null,null,null,null,null,null,null,null,"Q71","RQY","SOUTH WEST LONDON AND ST GEORGE'S MENTAL HEALTH NHS TRUST","Child & Adolescent Mental Health Services"]
[null,null,null,null,null,null,null,null,null,null,null,null,null,null,null,null,"Q71","RQY","SOUTH WEST LONDON AND ST GEORGE'S MENTAL HEALTH NHS TRUST","Mental Health Other"]
[null,null,null,null,null,null,null,null,null,null,null,null,null,null,null,null,"Q71","RQY","SOUTH WEST LONDON AND ST GEORGE'S MENTAL HEALTH NHS TRUST","Secondary Care Community Services"]
[null,null,null,null,null,null,null,null,null,null,null,null,null,null,null,null,"Q71","RQY","SOUTH WEST LONDON AND ST GEORGE'S MENTAL HEALTH NHS TRUST","Secure & Forensic Services"]
[null,null,null,null,null,null,null,null,null,null,null,null,null,null,null,null,"Q71","RNK","TAVISTOCK AND PORTMAN NHS FOUNDATION TRUST","Mental Health Other"]
[null,null,null,null,null,null,null,null,null,null,null,null,null,null,null,null,"Q71","RRV","UNIVERSITY COLLEGE LONDON HOSPITALS NHS FOUNDATION TRUST","Specialist Services"]
[null,null,null,null,null,null,null,null,null,null,null,null,null,null,null,null,"Q71","RKL","WEST LONDON MENTAL HEALTH NHS TRUST","Acute Services"]
[null,null,null,null,null,null,null,null,null,null,null,null,null,null,null,null,"Q71","RKL","WEST LONDON MENTAL HEALTH NHS TRUST","Child & Adolescent Mental Health Services"]
[null,null,null,null,null,null,null,null,null,null,null,null,null,null,null,null,"Q71","RKL","WEST LONDON MENTAL HEALTH NHS TRUST","Primary Care"]
[null,null,null,null,null,null,null,null,null,null,null,null,null,null,null,null,"Q71","RKL","WEST LONDON MENTAL HEALTH NHS TRUST","Secondary Care Community Services"]
[null,null,null,null,null,null,null,null,null,null,null,null,null,null,null,null,"Q71","RKL","WEST LONDON MENTAL HEALTH NHS TRUST","Secure & Forensic Services"]
[null,null,null,null,null,null,null,null,null,null,null,null,null,null,null,null,"IS1","NVR","ALPHA HOSPITALS","Child & Adolescent Mental Health Services"]
[null,null,null,null,null,null,null,null,null,null,null,null,null,null,null,null,"IS1","NVR","ALPHA HOSPITALS","Secure & Forensic Services"]
[null,null,null,null,null,null,null,null,null,null,null,null,null,null,null,null,"IS1","NWX","BRIGHTON & HOVE INTEGRATED CARE SERVICE","Primary Care"]
[null,null,null,null,null,null,null,null,null,null,null,null,null,null,null,null,"IS1","NNF","CITY HEALTH CARE PARTNERSHIP CIC","Primary Care"]
[null,null,null,null,null,null,null,null,null,null,null,null,null,null,null,null,"IS1","NNF","CITY HEALTH CARE PARTNERSHIP CIC","Specialist Services"]
[null,null,null,null,null,null,null,null,null,null,null,null,null,null,null,null,"IS1","NMJ","CYGNET HEALTH CARE LIMITED","Child & Adolescent Mental Health Services"]
[null,null,null,null,null,null,null,null,null,null,null,null,null,null,null,null,"IS1","NMJ","CYGNET HEALTH CARE LIMITED","Secure & Forensic Services"]
[null,null,null,null,null,null,null,null,null,null,null,null,null,null,null,null,"IS1","NMJ","CYGNET HEALTH CARE LIMITED","Specialist Services"]
[null,null,null,null,null,null,null,null,null,null,null,null,null,null,null,null,"IS1","NQL","NAVIGO","Mental Health Other"]
[null,null,null,null,null,null,null,null,null,null,null,null,null,null,null,null,"IS1","NR5","PLYMOUTH COMMUNITY HEALTHCARE (CIC)","Acute Services"]
[null,null,null,null,null,null,null,null,null,null,null,null,null,null,null,null,"IS1","NR5","PLYMOUTH COMMUNITY HEALTHCARE (CIC)","Child & Adolescent Mental Health Services"]
[null,null,null,null,null,null,null,null,null,null,null,null,null,null,null,null,"IS1","NR5","PLYMOUTH COMMUNITY HEALTHCARE (CIC)","Secondary Care Community Services"]
[null,null,null,null,null,null,null,null,null,null,null,null,null,null,null,null,"IS1","NDK","YARBOROUGH CLEE CARE LIMITED","Secondary Care Community Services"]